Workbook

Sheet 기본사항
P3: 사용가이드
C5: 소득자 인적사항
C7: 성명 | G7: 이영화
C8: 주민등록번호 | G8: 123456-1234567
C9: 주소 | G9: 서울 중구 다산로11길 25
C10: 귀속연도 | G10: 2021
C12: 원천징수의무자 인적사항
C14: 상호 | G14: (주)조세통람
C15: 대표자성명 | G15: 김철수
C16: 사업자등록번호 | G16: 203-81-11111
C17: 주민등록번호 | G17: 123456-1234567
C18: 사업장주소 | G18: 서울 중구 동호로14길 5-6
C19: 신고년월일 | G19: 2022-03-02
C20: 관할세무서 | G20: 중부세무서장
P22: 최신세무·회계·법령서비스
P23: http://www.taxnet.co.kr/

Sheet 신고서
B2: ■ 소득세법 시행규칙[별지 제37호서식(1)] <개정(안) 2021. 10. 28.> | AW2: (8쪽 중 제1쪽)
B3: 소득ㆍ세액 공제신고서/근로소득자 소득ㆍ세액 공제신고서 ( 2021년 소득에 대한 연말정산용)
B4: ※ 근로소득자는 신고서에 소득ㆍ세액 공제 증명서류를 첨부하여 원천징수의무자(소속 회사 등)에게 제출하며, 원천징수의무자는 신고서 및 첨부서류를 확인하여 근로소득 세액계산을 하고 근로소득자에게 즉시 근로소득원천징수영수증을 발급해야 합니다. 연말정산 시 근로소득자에게 환급이 발생하는 경우 원천징수의무자는 근로소득자에게 환급세액을 지급해야 합니다.
B5: 소득자 성명 | K5: =기본사항!G7 -> 이영화 | AA5: 주민등록번호 | AJ5: =기본사항!G8 -> 123456-1234567
B6: 근무처 명칭 | K6: =기본사항!G14 -> (주)조세통람 | AA6: 사업자등록번호 | AJ6: =기본사항!G16 -> 203-81-11111
B7: 세대주여부 | N7: 세대주 | Q7: , | U7: 세대원 | AA7: 국적 | AJ7: 한국 | AM7: ( 국적 코드: | AS7: KR | AV7: )
K8: FALSE | Z8: FALSE
B9: 근무기간 | K9: 20210101 | Q9: ~ | R9: 20211231 | AA9: 감면기간 | AP9: ~
B10: 거주구분 | N10: 거주자 | Q10: , | U10: 비거주자 | AA10: 거주지국 | AJ10: 한국 | AM10: ( 거주지국 코드: | AS10: KR | AV10: )
K11: TRUE | Z11: FALSE
B12: 인적공제 항목변동 여부 | M12: 전년과동일 | Q12: , | U12: 변동 | AA12: 분납신청 여부 | AN12: 신청 | AQ12: , | AU12: 미신청
B13: 원천징수세액 선택 | M13: 1.2 | Q13: 1 | V13: 0.8 | AA13: ※ 근로소득자 본인이 원하는 경우 매월 원천징수하는 세액을 법령상 세액의 120%, 100%, 80% 중 선택할 수 있습니다.
B14: Ⅰ.인적공제 및 소득공제명세 | C14: 인적공제항목 | AA14: 각종 소득ㆍ세액 공제 항목
C15: 관계코드 | F15: 성명 | N15: 기본공제 | T15: 경로우대 | W15: 출산입양 | AA15: 자료 구분 | AD15: 보험료 | AL15: 의료비 | AT15: 교육비
C16: 내ㆍ외 국인 | F16: 주민등록번호 | N16: 부녀자 | Q16: 한부모 | T16: 장애인 | W16: 자녀 | AD16: 건강 | AF16: 고용 | AH16: 보장성 | AJ16: 장애인 전용 보장성 | AL16: 일반 | AN16: 난임 | AP16: 65세이상 장애인 건강보험 산정특례자 | AR16: 실손의료 보험금 | AT16: 일반 | AV16: 장애인
C17: 인적공제 항목에 해당하는 | N17: =인적공제!G17 -> 5 | T17: =인적공제!M17 -> 1 | W17: =인적공제!I17 -> 1 | AA17: 국세청계 | AD17: =AD19+AD21+AD23+AD25+AD27+AD29+AD31+AD33+AD35+AD37 -> 0 | AF17: =AF19+AF21+AF23+AF25+AF27+AF29+AF31+AF33+AF35+AF37 -> 0 | AH17: =AH19+AH21+AH23+AH25+AH27+AH29+AH31+AH33+AH35+AH37 -> 0 | AJ17: =AJ19+AJ21+AJ23+AJ25+AJ27+AJ29+AJ31+AJ33+AJ35+AJ37 -> 0 | AL17: =AL19+AL21+AL23+AL25+AL27+AL29+AL31+AL33+AL35+AL37 -> 0 | AN17: =AN19+AN21+AN23+AN25+AN27+AN29+AN31+AN33+AN35+AN37 -> 0 | AP17: =AP19+AP21+AP23+AP25+AP27+AP29+AP31+AP33+AP35+AP37 -> 0 | AR17: =AR19+AR21+AR23+AR25+AR27+AR29+AR31+AR33+AR35+AR37 -> 0 | AT17: =AT19+AT21+AT23+AT25+AT27+AT29+AT31+AT33+AT35+AT37 -> 0 | AV17: =AV19+AV21+AV23+AV25+AV27+AV29+AV31+AV33+AV35+AV37 -> 0
C18: 인원수를 적습니다. | N18: =IF(Q18="",IF(N20="","",1),"") ->  | Q18: =IF(Q20="","",1) ->  | T18: =인적공제!K17 -> 0 | W18: =인적공제!L17 -> 1 | AA18: 기타계 | AD18: =AD20+AD22+AD24+AD26+AD28+AD30+AD32+AD34+AD36+AD38 -> 883200 | AF18: =AF20+AF22+AF24+AF26+AF28+AF30+AF32+AF34+AF36+AF38 -> 201600 | AH18: =AH20+AH22+AH24+AH26+AH28+AH30+AH32+AH34+AH36+AH38 -> 0 | AJ18: =AJ20+AJ22+AJ24+AJ26+AJ28+AJ30+AJ32+AJ34+AJ36+AJ38 -> 0 | AL18: =AL20+AL22+AL24+AL26+AL28+AL30+AL32+AL34+AL36+AL38 -> 0 | AN18: =AN20+AN22+AN24+AN26+AN28+AN30+AN32+AN34+AN36+AN38 -> 0 | AP18: =AP20+AP22+AP24+AP26+AP28+AP30+AP32+AP34+AP36+AP38 -> 0 | AR18: =AR20+AR22+AR24+AR26+AR28+AR30+AR32+AR34+AR36+AR38 -> 0 | AT18: =AT20+AT22+AT24+AT26+AT28+AT30+AT32+AT34+AT36+AT38 -> 0 | AV18: =AV20+AV22+AV24+AV26+AV28+AV30+AV32+AV34+AV36+AV38 -> 0
C19: 0 | F19: =K5 -> 이영화 | N19: ○ | W19: ○3 | AA19: 국세청
C20: 1 | F20: (근로자 본인) | AA20: 기타 | AD20: =급여내역!CB20+급여내역!CD20 -> 883200 | AF20: =급여내역!CC20 -> 201600
C21: 3 | F21: 조세희 | N21: ○ | AA21: 국세청
C22: 1 | F22: 710415-2031653 | AA22: 기타
C23: 2 | F23: 편람일 | N23: ○ | T23: ○ | AA23: 국세청
C24: 1 | F24: 481103-2019015 | AA24: 기타
C25: 4 | F25: 이대한 | N25: ○ | AA25: 국세청
C26: 1 | F26: 091206-4059631 | AA26: 기타
C27: 4 | F27: 이민국 | N27: ○ | AA27: 국세청
C28: 1 | F28: 151230-3059632 | W28: ○ | AA28: 기타
AA29: 국세청
AA30: 기타
AA31: 국세청
AA32: 기타
AA33: 국세청
AA34: 기타
AA35: 국세청
AA36: 기타
AA37: 국세청
AA38: 기타
C39: 각종 소득ㆍ세액 공제 항목
C40: 자료 구분 | F40: 기간 | H40: 신용카드등 사용액 | AT40: 기부금
H41: 신용카드 | N41: 직불카드등 | T41: 현금영수증 | Z41: 도서공연등사용분 (총급여 7천만원 이하자만 기재) | AF41: 전통시장사용분 | AM41: 대중교통 이용분
C43: 국세청계 | F43: 3월 | H43: =H49+H55 -> 0 | N43: =N49+N55 -> 0 | T43: =T49+T55 -> 0 | Z43: =Z49+Z55 -> 0 | AF43: =AF49+AF55 -> 0 | AM43: =AM49+AM55 -> 0 | AT43: =AT49+AT55 -> 0
F44: 4~7월 | H44: 0 | N44: 0 | T44: =T50+T56 -> 0 | Z44: 0 | AF44: 0 | AM44: 0
F45: 그 외 | H45: 0 | N45: 0 | T45: =T51+T57 -> 0 | Z45: 0 | AF45: 0 | AM45: 0
C46: 기타계 | F46: 3월 | H46: 0 | N46: 0 | T46: =SUM(T52,T58) -> 0 | Z46: 0 | AF46: 0 | AM46: 0 | AT46: =AT52+AT58 -> 0
F47: 4~7월 | H47: 0 | N47: 0 | T47: =SUM(T53,T59) -> 0 | Z47: 0 | AF47: 0 | AM47: 0
F48: 그 외 | H48: 0 | N48: 0 | T48: =SUM(T54,T60) -> 0 | Z48: 0 | AF48: 0 | AM48: 0
C49: 국세청 | F49: 3월
F50: 4~7월
F51: 그 외
C52: 기타 | F52: 3월
F53: 4~7월
F54: 그 외
C55: 국세청 | F55: 3월
F56: 4~7월
F57: 그 외
C58: 기타 | F58: 3월
F59: 4~7월
F60: 그 외
C61: 국세청 | BD61: =IF(Q62="",AB61+AB62,0) -> 0
C62: 기타
C63: 국세청 | BD63: =IF(Q64="",AB63+AB64,0) -> 0
C64: 기타
C65: 국세청 | BD65: =IF(Q66="",AB65+AB66,0) -> 0
C66: 기타
C67: 국세청 | BD67: =IF(Q68="",AB67+AB68,0) -> 0
C68: 기타
B70: 유의사항
C71: 1. “인적공제 항목 변동 여부”란에는 해당 항목에 “√”표시합니다(인적공제 항목이 전년과 동일한 경우에는 주민등록표등본을 제출하지 않습니다).
C72: 2. 관계코드
H73: 구 분 | P73: 관계코드 | T73: 구 분 | AD73: 관계코드 | AH73: 구 분 | AR73: 관계코드
H74: 소득자 본인 (「소득세법」 §50①1) | P74: 0 | T74: 소득자의 직계존속 (「소득세법」 §50①3가) | AD74: 1 | AH74: 배우자의 직계존속 (「소득세법」 §50①3가) | AR74: 2
H75: 배우자 (「소득세법」 §50①2) | P75: 3 | T75: 직계비속(자녀ㆍ입양자) (「소득세법」 §50①3나) | AD75: 4 | AH75: 직계비속(코드 4 제외) (「소득세법」 §50①3나) | AR75: 5*
H76: 형제자매 (「소득세법」 §50①3다) | P76: 6 | T76: 수급자(코드1~6제외) (「소득세법」 §50①3라) | AD76: 7 | AH76: 위탁아동 (「소득세법」 §50①3마) | AR76: 8
H77: * 관계코드 5: 해당 직계비속과 그 배우자가 장애인인 경우 그 배우자를 말하며, 관계코드 4~6은 소득자와 배우자의 각각의 관계를 포함합니다.
C78: 3. 연령기준 - 경로우대: ( . . .) 이전 출생(만 70세 이상: 연 100만원 공제)
C79: 4. "부녀자 공제"란에는 소득자 본인이 여성인 경우로서 다음의 요건을 모두 충족하는 경우에 표시합니다. 가. 해당 과세기간의 종합소득과세표준을 계산할 때 합산하는 종합소득금액이 3천만원 이하일 것 나. 배우자가 없는 여성으로서 「소득세법」 제50조제1항제3호에 따른 부양가족이 있는 세대주이거나 배우자가 있는 여성일 것
C80: 5. "장애인 공제"란에는 다음의 해당 코드를 적습니다.
H81: 구분 | K81: 「장애인복지법」에 따른 장애인 | U81: 「국가유공자 등 예우 및 지원에 관한 법률」에 따른 상이자 및 이와 유사한 자로서 근로능력이 없는 자 | AI81: 그 밖에 항시 치료를 요하는 중증환자
H82: 해당코드 | K82: 1 | U82: 2 | AI82: 3
C84: 6. 내ㆍ외국인: 내국인=1, 외국인=9로 구분하여 적습니다. 종교관련종사자가 외국인에 해당하는 경우 국적을 적으며, 국적코드는 거주지국코드를 참조하여 적습니다.
C85: 7. 내ㆍ외국인: 내국인=1, 외국인=9로 구분하여 적습니다. 근로소득자가 외국인에 해당하는 경우 국적을 적으며, 국적코드는 거주지국코드를 참조하여 적습니다.
AW87: 210㎜×297㎜
AW88: (8쪽 중 제2쪽)
B89: 구분 | I89: 지출명세 | X89: 지출구분 | AF89: 금액 | AL89: 한도액 | AR89: 공제액
B90: Ⅱ.연금보험료공제 | C90: 연금보험료(국민연금, 공무원연금, 군인연금, 교직원연금 등) | I90: 국민연금보험료 | O90: 종(전)근무지 | X90: 보험료 | AF90: =급여내역!CA26+급여내역!CA33+급여내역!CA40 -> 0 | AL90: 전액 | AR90: =AF90 -> 0
O91: 주(현)근무지 | X91: 보험료 | AF91: =급여내역!CA20 -> 1134000 | AL91: 전액 | AR91: =AF91 -> 1134000
I92: 국민연금보험료 외의 공적연금보험료 | O92: 종(전)근무지 | X92: 보험료 | AF92: 300000 | AL92: 전액 | AR92: =AF92 -> 300000
O93: 주(현)근무지 | X93: 보험료 | AL93: 전액 | AR93: =AF93 -> 0
I94: 연금보험료 계 | AF94: =SUM(AF90:AK93) -> 1434000 | AR94: =SUM(AR90:AW93) -> 1434000
B95: Ⅲ.특별소득공제 | C95: 보험료 | I95: 국민건강보험(노인장기요양보험포함) | O95: 종(전)근무지 | X95: 보험료 | AF95: 50000 | AL95: 전액 | AR95: =AF95 -> 50000
O96: 주(현)근무지 | X96: 보험료 | AF96: =급여내역!CB20+급여내역!CD20 -> 883200 | AL96: 전액 | AR96: =AF96 -> 883200
I97: 고용보험 | O97: 종(전)근무지 | X97: 보험료 | AF97: =급여내역!CC26+급여내역!CC33+급여내역!CC40 -> 0 | AL97: 전액 | AR97: =AF97 -> 0
O98: 주(현)근무지 | X98: 보험료 | AF98: =급여내역!CC20 -> 201600 | AL98: 전액 | AR98: =AF98 -> 201600
I99: 보험료 계 | AF99: =SUM(AF95:AK98) -> 1134800 | AR99: =SUM(AR95:AW98) -> 1134800
C100: 주택자금 | I100: 주택임차차입금 | O100: 대출기관차입 | X100: 원리금 상환액 | AF100: 3800000 | AL100: 작성방법참조 | AR100: =ROUNDDOWN(MIN(3000000,AF100*0.4),0) -> 1520000
O101: 거주자 차입 | AR101: =ROUNDDOWN(MIN((3000000-AR100),AF101*0.4),0) -> 0
I102: 장기 주택 저당 차입금 | L102: 2011년 이전 차입분 | O102: 15년 미만 | X102: 이자 상환액 | AL102: 작성방법참조 | AR102: =IF(AF102="",0,MIN(AF102,(6000000-AR100-AR101))) -> 0
O103: 15년~29년 | AR103: =IF(AF103="",0,MIN(AF103,(10000000-AR100-AR101))) -> 0
O104: 30년 이상 | AR104: =IF(AF104="",0,MIN(AF104,(15000000-AR100-AR101))) -> 0
L105: 2012년 이후 차입분 (15년 이상) | O105: 고정금리이거나, 비거치상환 대출 | AR105: =IF(AF105="",0,MIN(AF105,(15000000-AR100-AR101))) -> 0
O106: 기타 대출 | AR106: =IF(AF106="",0,MIN(AF106,(5000000-AR100-AR101))) -> 0
L107: 2015년 이후 차입분 | O107: 15년 이상 | Q107: 고정금리이면서, 비거치상환 대출 | AR107: =IF(AF107="",0,MIN(AF107,(18000000-AR100-AR101))) -> 0
Q108: 고정금리이거나, 비거치상환 대출 | AR108: =IF(AF108="",0,MIN(AF108,(15000000-AR100-AR101))) -> 0
Q109: 기타 대출 | AR109: =IF(AF109="",0,MIN(AF109,(5000000-AR100-AR101))) -> 0
O110: 10년~ 15년 | Q110: 고정금리이거나, 비거치상환 대출 | AR110: =IF(AF110="",0,MIN(AF110,(3000000-AR100-AR101))) -> 0
I111: 주택자금 공제액 계 | AR111: =SUM(AR100:AW110) -> 1520000
C112: 기부금 (이월분) | I112: 「소득세법」 제34조 제2항 제1호에 따른 기부금 | X112: 기부금이월액 | AL112: 작성방법참조 | AR112: =IF(AF112="",0,MIN(AZ114,AF112)) -> 0
I113: 「소득세법」 제34조 제3항 제1호(종교단체 기부금 제외)에 따른 기부금 | X113: 기부금이월액 | AR113: =IF(AF113="",0,IF(AF114>0,MIN(AF113,(AZ114*0.1)+MIN((AZ114*0.2),AF113)),MIN(AF113,AZ114*0.3))) -> 0 | AZ113: 근로소득금액
I114: 「소득세법」 제34조 제3항 제1호에 따른 기부금 중 종교단체기부금 | X114: 기부금이월액 | AR114: =IF(AF114="",0,MIN(AF114,(AZ114*0.1))) -> 0 | AZ114: =영수증!S65 -> 16170000
I115: 기부금이월분(합계) | AF115: =SUM(AF113:AK114) -> 0 | AR115: =SUM(AR113:AW114) -> 0
B116: Ⅳ.그밖의소득공제 | C116: 개인연금저축(2000년 이전가입) | X116: 납입금액 | AL116: 납입액 40%와 72만원 | AR116: =ROUNDDOWN(IF(AF116="",0,MIN(AF116*0.4,720000)),0) -> 0 | AZ116: 총급여액
C117: 소기업ㆍ소상공인 공제부금 | X117: 납입금액 | AL117: 작성방법참조 | AR117: =IF(AF117="",0,IF(AZ117>100000000,MIN(AF117,2000000),IF(AZ117>40000000,MIN(AF117,3000000),MIN(AF117,5000000)))) -> 0 | AZ117: =영수증!S63 -> 25200000
C118: 주택마련저축 | I118: 청약저축 | X118: 납입금액 | AL118: 작성방법참조 | AR118: =ROUNDDOWN(IF(AF118="",0,MIN(MIN(AF118,2400000)*0.4,MAX((AZ118-AR100-AR101-SUM(AR102:AW110)),0))),0) -> 0 | AZ118: =IF(AR102>0,6000000,IF(AR103>0,10000000,IF(AR104>0,15000000,IF(AR105>0,15000000,IF(AR106>0,5000000,3000000))))) -> 3000000
I119: 근로자주택마련저축 | X119: 납입금액 | AL119: 작성방법참조 | AR119: =ROUNDDOWN(IF(AF119="",0,MIN(MIN(AF119,1800000)*0.4,MAX((AZ118-AR100-AR101-AR118-SUM(AR102:AW110)),0))),0) -> 0
I120: 주택청약종합저축 | X120: 납입금액 | AL120: 작성방법참조 | AR120: =ROUNDDOWN(IF(AF120="",0,MIN(MIN(AF120,2400000)*0.4,MAX((AZ118-AR100-AR101-AR118-AR119-SUM(AR102:AW110)),0))),0) -> 0
I121: 주택마련저축 소득공제 계 | AF121: =SUM(AF118:AK120) -> 0 | AR121: =SUM(AR118:AW120) -> 0
C122: 투자조합 출자 등 | I122: 2018년 출자ㆍ투자분 | U122: 조합 등 | X122: 출자ㆍ투자금액 | AL122: 0.1 | AR122: =MIN(ROUNDDOWN(IF(AF122="",0,AF122*AL122),0),영수증!S65*0.5) -> 0
U123: 벤처 등 | AR123: =MIN(ROUNDDOWN(IF(AF123="",0,AF123*AL122),0),영수증!S65*0.5) -> 0
I124: 2019년 출자ㆍ투자분 | U124: 조합 등 | X124: 출자ㆍ투자금액 | AL124: 0.1 | AR124: =MIN(ROUNDDOWN(IF(AF124="",0,AF124*$AL$124),0),영수증!$S$65*0.5) -> 0
U125: 벤처 등 | AR125: =MIN(ROUNDDOWN(IF(AF125="",0,AF125*$AL$124),0),영수증!$S$65*0.5) -> 0
I126: 2020년 출자ㆍ투자분 | U126: 조합 등 | X126: 출자ㆍ투자금액 | AL126: 0.1 | AR126: =MIN(ROUNDDOWN(IF(AF126="",0,AF126*$AL$126),0),영수증!$S$65*0.5) -> 0
U127: 벤처 등 | AR127: =MIN(ROUNDDOWN(IF(AF127="",0,AF127*$AL$126),0),영수증!$S$65*0.5) -> 0
I128: 투자조합 출자 등 소득공제 계 | AF128: =SUM(AF122:AK126) -> 0 | AR128: =SUM(AR122:AR126) -> 0
C129: 신용카드등사용액 | I129: ①신용카드 | X129: 사용금액 | AF129: =SUM(H43:H48) -> 0
I130: ②직불·선불카드 | X130: 사용금액 | AF130: =SUM(N43:N48) -> 0
I131: ③현금영수증 | X131: 사용금액 | AF131: =SUM(T43:T45) -> 0
I132: ④도서·공연사용분(총급여 7천만원 이하자) | X132: 사용금액 | AF132: =SUM(Z43:Z48) -> 0
I133: ⑤전통시장사용분 | X133: 사용금액 | AF133: =SUM(AF43:AF48) -> 0
I134: ⑥대중교통이용분 | X134: 사용금액 | AF134: =SUM(AM43:AM48) -> 0
I135: 계(①+②+③+④+⑤+⑥) | AF135: =SUM(AF129:AK134) -> 0 | AR135: =신용카드!AP25 -> 0
C136: 우리사주조합 출연금 | X136: 출연금액 | AL136: 작성방법참조 | AR136: =IF(AF136="",0,MIN(AF136,4000000)) -> 0
C137: 고용유지중소기업 근로자 | X137: 임금삭감액 | AL137: 작성방법참조 | AR137: =ROUNDDOWN(IF(AF137="",0,MIN(AF137*0.5,10000000)),0) -> 0
C138: 장기집합투자증권저축 | X138: 납입금액 | AL138: 작성방법참조 | AR138: =ROUNDDOWN(IF(AF138="",0,MIN(AF138*0.4,2400000)),0) -> 0
B139: 210㎜×297㎜ (8쪽 중 제3쪽)
B141: 구분 | E141: 세액감면․공제명세 | W141: 세액감면․공제 명세
B142: Ⅴ.세액감면및공제 | C142: 세액감면 | E142: 외국인 근로자 | K142: 입국목적 | R142: 정부간 협약 「조세특례제한법」상 감면 조세조약 상 감면
K143: 기술도입계약 또는 근로제공일 | AF143: 감면기간만료일
K144: 외국인 근로소득에 대한 감면 | W144: 접수일 | AL144: 제출일
K145: 근로소득에 대한 조세조약 상 면제 | W145: 접수일 | AL145: 제출일
E146: 성과공유 중소기업 경영성과급 감면 | W146: 시작일 | AL146: 종료일
E147: 중소기업 청년근로자 및 핵심인력 성과보상기금 수령액 감면 | W147: 시작일 | AL147: 종료일
E148: 내국인 우수 인력 국내 복귀 감면 | W148: 시작일 | AL148: 종료일
E149: 중소기업 취업자 감면 | W149: 취업일 | AL149: 감면기간종료일
C150: 세액공제 | E150: 공제종류 | W150: 명세 | AG150: 한도액 | AL150: 공제대상금액 | AQ150: 공제율 | AT150: 공제세액
E151: 연금계좌 | K151: 과학기술인공제 | W151: 납입금액 | AG151: 작성방법참조 | AL151: =IF(AA151="",0,MIN(AA151,7000000)) -> 0 | AQ151: 12% 또는 15% | AT151: =영수증!AN76 -> 0
K152: 「근로자퇴직급여 보장법」에 따른 퇴직연금 | W152: 납입금액 | AL152: =IF(AA152="",0,MIN(AA152,7000000-AL151)) -> 0 | AT152: =영수증!AN78 -> 0
K153: 연금저축 | W153: 납입금액 | AL153: =IF(AA153="",0,MIN(MIN(IF((7000000-AL151-AL152)<0,0,(7000000-AL151-AL152)),AA153),IF(AZ153>120000000,3000000,4000000))) -> 0 | AT153: =영수증!AN80 -> 0 | AZ153: =영수증!S63 -> 25200000
K154: 연금계좌 계 | AA154: =SUM(AA151:AF153) -> 0 | AL154: =SUM(AL151:AP153) -> 0 | AT154: =SUM(AT151:AW153) -> 0
E155: 특별세액공제 | I155: 보 험 료 | K155: 보장성 | W155: 보험료 | AG155: 100만원 | AL155: =IF(AA155="",0,MIN(AA155,1000000)) -> 0 | AQ155: 0.12 | AT155: =ROUNDDOWN(AL155*0.12,0) -> 0 | AZ155: 총급여3% | BA155: =ROUNDDOWN(영수증!S63*0.03,0) -> 756000
K156: 장애인전용보장성 | W156: 보험료 | AG156: 100만원 | AL156: =IF(AA156="",0,MIN(AA156,1000000)) -> 0 | AQ156: 0.15 | AT156: =ROUNDDOWN(AL156*0.15,0) -> 0 | AZ156: 3%초과의료비 | BA156: =(AL162-BA155) -> -756000
K157: 보험료 계 | AA157: =SUM(AA155:AF156) -> 0 | AL157: =SUM(AL155:AP156) -> 0 | AT157: =SUM(AT155:AW156) -> 0 | AZ157: 한도액 | BA157: 7000000
I158: 의 료 비 | K158: 본인ㆍ65세이상자ㆍ장애인 ㆍ건강보험산정특례자 | W158: 지출액 | AA158: 0 | AG158: 작성방법참조 | AL158: =MAX(IF(AZ160<0,AA158+AZ160,AA158),0) -> 0 | AQ158: 0.15 | AT158: =AL158*AQ158 -> 0
K159: 난임시술비 | W159: 지출액 | AA159: 0 | AL159: =MAX(IF(AZ162<0,AA159+AZ162,AA159),0) -> 0 | AQ159: 0.2 | AT159: =AL159*AQ159 -> 0
K160: 그 밖의 공제대상자 | W160: 지출액 | AA160: 0 | AL160: =IF(AA160="",0,MIN(MAX(AA160-BA155,0),7000000)) -> 0 | AQ160: 0.15 | AT160: =AL160*AQ160 -> 0 | AZ160: =IF(AA160="",0,MIN((AA160-ROUNDDOWN(영수증!S63*0.03,0)),7000000)) -> -756000
K161: 실손의료보험금 계 | W161: 수령액
K162: 의료비계 | AA162: =SUM(AA158:AF161) -> 0 | AL162: =MAX(SUM(AL158:AP160),0) -> 0 | AT162: =SUM(AT158:AW160) -> 0 | AZ162: =IF(AZ160<0,AA158+AZ160,AA159) -> -756000
I163: 교 육 비 | K163: 소득자 본인 | W163: 공납금 (대학원 포함) | AG163: 전액 | AL163: =AA163 -> 0 | AQ163: 0.15 | AT163: =ROUNDDOWN(AL163*0.15,0) -> 0
K164: 취학전 아동 | R164: ( | V164: 명) | W164: 유치원, 학원비 등 | AG164: 1명당 300만원 | AL164: =IF(AA164="",0,MIN(AA164,3000000*S164)) -> 0 | AT164: =ROUNDDOWN(IF(AA164="",0,AL164*0.15),0) -> 0
K165: 초ㆍ중ㆍ고등학교 | R165: ( | V165: 명) | W165: 공납금 | AG165: 1명당 300만원 | AL165: =IF(AA165="",0,MIN(AA165,3000000*S165)) -> 0 | AT165: =ROUNDDOWN(IF(AA165="",0,AL165*0.15),0) -> 0
K167: 대학생(대학원 불포함) | R167: ( | V167: 명) | W167: 공납금 | AG167: 1명당 900만원 | AL167: =IF(AA167="",0,MIN(AA167,9000000*S167)) -> 0 | AT167: =ROUNDDOWN(IF(AA167="",0,AL167*0.15),0) -> 0
K168: 장애인 | R168: ( | V168: 명) | W168: 특수교육비 | AG168: 전액 | AL168: =AA168 -> 0 | AT168: =ROUNDDOWN(IF(AA168="",0,AL168*0.15),0) -> 0
K169: 교육비 계 | AA169: =SUM(AA163:AF168) -> 0 | AL169: =SUM(AL163:AP168) -> 0 | AT169: =SUM(AT163:AW168) -> 0
I170: 기 부 금 | K170: 정치자금 기부금 | O170: 10만원 이하 | W170: 기부금액 | AL170: =AA170 -> 0 | AQ170: 100/110 | AT170: =ROUNDDOWN(IF(AL170="",0,(AL170*100/110)),0) -> 0
O171: 10만원 초과 | W171: 기부금액 | AL171: =IF(AA171="",0,MIN(AA171,영수증!S65-AR115)) -> 0 | AQ171: 15% 또는 25% 또는 30% | AT171: =ROUNDDOWN(IF(AL171<=29900000,(AL171*0.15),(AL171-29900000)*0.25+4485000),0) -> 0
K172: 법정기부금 | W172: 기부금액 | AG172: 작성방법참조 | AL172: =IF(AA172="",0,MIN(AA172,(영수증!S65-AL170-AL171-AR112))) -> 0 | AT172: =ROUNDDOWN(IF(AL172<=20000000,(AL172*0.15),(AL172-20000000)*0.3+3000000),0) -> 0
K173: 우리사주조합기부금 | W173: 기부금액 | AA173: 0 | AL173: =IF(AA173="",0,MIN(AA173,(영수증!S65-AL170-AL171-AL172)*0.3)) -> 0 | AT173: =ROUNDDOWN(IF(AL173<=20000000,(AL173*0.15),(AL173-20000000)*0.3+3000000),0) -> 0
K174: 「소득세법」 제34조 제3항 제1호(종교단체 기부금 제외) 에 따른 기부금 | W174: 기부금액 | AA174: 0 | AK174: =(영수증!S65-AL170-AL171-AL172-AL173-AR115) -> 16170000 | AL174: =IF(AA174="",0,IF(AA175>0,MIN(AA174,(AK174*0.1)+MIN((AK174*0.2),AA174)),MIN(AA174,AK174*0.3))) -> 0 | AT174: =ROUNDDOWN(IF(AL174<=20000000,(AL174*0.15),(AL174-20000000)*0.3+3000000),0) -> 0
K175: 「소득세법」 제34조 제3항 제1호에 따른 기부금 중 종교단체기부금 | W175: 기부금액 | AL175: =IF(AA175="",0,MIN(AA175,(AL173*0.1))) -> 0 | AT175: =ROUNDDOWN(IF(AL175<=20000000,(AL175*0.15),(AL175-20000000)*0.3+3000000),0) -> 0
K176: 기부금 계 | AA176: =SUM(AA170:AF175) -> 0 | AL176: =SUM(AL170:AP175) -> 0 | AT176: =SUM(AT170:AW175) -> 0
E177: 외국납부세액 | W177: 국외원천소득 | AL177: 국외근로소득금액 | AR177: =IF(AF177=0,0,ROUNDDOWN(AF177-(영수증!S64*(AF177/영수증!S63)),0)) -> 0
W178: 납세액(외화)
W179: 납세액(원화) | AL179: -
W180: 납세국명 | AL180: 납부일
W181: 신청서제출일 | AL181: 국외근무처
W182: 근무기간 | AL182: 직책
E183: 주택자금차입금이자세액공제 | W183: 이자상환액 | AL183: 0.3 | AR183: =ROUNDDOWN(AF183*0.3,0) -> 0
E184: 월세액 세액공제 | W184: 지출액 | AF184: 0 | AL184: 10% 또는 12% | AR184: =ROUNDDOWN(MIN(AF184,7500000)*IF(영수증!S63<=55000000,0.12,IF(영수증!S63<=70000000,0.1,0)),0) -> 0
C185: 신고인은「소득세법」제140조에 따라 위의 내용을 신고하며, 위 내용을 충분히 검토하였고 신고인이 알고 있는 사실 그대로를 정확하게 적었음을 확인합니다.
B186: 2022년 월 일
AF187: 신고인 | AJ187: =K5 -> 이영화 | AQ187: (서명 또는 인)
B188: Ⅵ. 추가 제출 서류
B189: 1. 외국인근로자 단일세율적용신청서 제출여부(○ 또는 ×로 적습니다) | AN189: 제출( | AR189: )
B190: 2.종(전) 근무지명세 | H190: 종(전)근무지명 | W190: 종(전)급여총액 | AL190: 종(전)근무지 근로소득원천징수영수증
H191: 사업자등록번호 | W191: 종(전)결정세액 | AL191: 제출( | AR191: )
B192: 3. 연금.저축 등 소득․세액공제 명세서 제출여부 (○ 또는 ×로 적습니다) | X192: 제출( | AB192: ) | AC192: ※ 연금계좌, 주택마련저축 등 소득·세액공제를 신청한 경우 해당 명세서를 제출하여야 합니다.
B194: 4. 월세액․거주자 간 주택임차차입금 원리금상환액 소득공제 명세서 제출여부 (○ 또는 ×로 적습니다) | X194: 제출( | AB194: ) | AC194: ※ 월세액, 거주자 간 주택임차차입금 원리금상환액 소득·세액공제를 신청한 경우 해당 명세서를 제출해야 합니다.
B196: 5. 그 밖의 추가 제출 서류 | Q196: ① 의료비지급명세서 | W196: ( | Z196: ) | AA196: , | AB196: ② 기부금명세서 | AH196: ( | AK196: ) | AL196: , | AM196: ③ 소득.세액공제 증명서류
B197: 유 의 사 항
C198: 1. 근로소득자가 종(전)근무지 근로소득을 원천징수의무자에게 신고하지 않은 경우에는 근로소득자 본인이 종합소득세 신고를 해야 하며, 신고하지 않은 경우 가산세 부과 등 불이익이 따릅니다. 2. 현 근무지의 연금보험료ㆍ국민건강보험료 및 고용보험료 등은 신고인이 기재하지 않아도 됩니다. 3. "공제금액"란은 근로소득자가 원천징수의무자에게 제출하는 경우 적지 않을 수 있습니다.
AW199: 210㎜×297㎜
AW200: (8쪽 중 제7쪽)
B201: 연금․저축 등 소득․세액 공제명세서
B202: 1.인적사항
B203: ①상 호 | K203: =기본사항!G14 -> (주)조세통람 | AA203: ②사 업 자 등 록 번 호 | AJ203: =기본사항!G16 -> 203-81-11111
B204: ③성 명 | K204: =기본사항!G7 -> 이영화 | AA204: ④주 민 등 록 번 호 | AJ204: =기본사항!G8 -> 123456-1234567
B205: ⑤주 소 | K205: =기본사항!G9 -> 서울 중구 다산로11길 25 | AJ205: (전화번호: | AP205: )
B206: ⑥사업장소재지 | K206: =기본사항!G18 -> 서울 중구 동호로14길 5-6 | AJ206: (전화번호: | AP206: )
B207: 2. 연금계좌 세액공제
B208: 1) 퇴직연금계좌
B209: * 퇴직연금계좌에 대한 명세를 작성합니다.
... 37 more rows

Sheet 급여내역
Y2: 2021년 급여지급내역
E4: [근무처명] : | M4: =기본사항!G14 -> (주)조세통람 | Y4: [사업자등록번호] : | AI4: =기본사항!G16 -> 203-81-11111 | AZ4: [근무기간] | BG4: 2021-01-01 | BM4: ~ | BO4: 2021-12-31 | BT4: [현근무지]
B5: 월별 | E5: 지급일자 | H5: 과 세 대 상 급 여 | AC5: 간이세액표에의한소득세 | AI5: 감면세액 | AL5: 차감원천징수액 | AX5: 비 과 세 소 득 | CA5: 국민연금 | CB5: 건강보험 | CC5: 고용보험 | CD5: 노인장기 요양보험
H6: 급여액 | M6: 상여액 | Q6: 인정상여 | U6: 주식매수 선택권 | V6: 우리사주 조합인출금 | W6: 임원퇴직 소득금액 한도초과액 | X6: 직무발명 보상금 | Y6: 계 | AL6: 소득세 | AP6: 지방 소득세 | AT6: 농특세 | AX6: 국 외 근 로 소 득 | BF6: 연구 활동비 | BK6: 야간 근로수당 | BO6: 출산 보육수당 | BP6: 외국인근로자 | BQ6: 그밖의비과세
AX7: 지급일자 | BB7: 원화 | BQ7: 내용 | BU7: 금액
B8: 1 | H8: 2100000 | Y8: =SUM(H8:X8) -> 2100000 | AC8: 22740 | AL8: 22740 | AP8: 2270 | CA8: 94500 | CB8: 67830 | CC8: 16800 | CD8: 5770
B9: 2 | H9: 2100000 | Y9: =SUM(H9:X9) -> 2100000 | AC9: 22740 | AL9: 22740 | AP9: 2270 | CA9: 94500 | CB9: 67830 | CC9: 16800 | CD9: 5770
B10: 3 | H10: 2100000 | Y10: 2100000 | AC10: 22740 | AL10: 22740 | AP10: 2270 | CA10: 94500 | CB10: 67830 | CC10: 16800 | CD10: 5770
B11: 4 | H11: 2100000 | Y11: 2100000 | AC11: 22740 | AL11: 22740 | AP11: 2270 | CA11: 94500 | CB11: 67830 | CC11: 16800 | CD11: 5770
B12: 5 | H12: 2100000 | Y12: 2100000 | AC12: 22740 | AL12: 22740 | AP12: 2270 | CA12: 94500 | CB12: 67830 | CC12: 16800 | CD12: 5770
B13: 6 | H13: 2100000 | Y13: 2100000 | AC13: 22740 | AL13: 22740 | AP13: 2270 | CA13: 94500 | CB13: 67830 | CC13: 16800 | CD13: 5770
B14: 7 | H14: 2100000 | Y14: 2100000 | AC14: 22740 | AL14: 22740 | AP14: 2270 | CA14: 94500 | CB14: 67830 | CC14: 16800 | CD14: 5770
B15: 8 | H15: 2100000 | Y15: 2100000 | AC15: 22740 | AL15: 22740 | AP15: 2270 | CA15: 94500 | CB15: 67830 | CC15: 16800 | CD15: 5770
B16: 9 | H16: 2100000 | Y16: 2100000 | AC16: 22740 | AL16: 22740 | AP16: =-+DI16 -> 0 | CA16: 94500 | CB16: 67830 | CC16: 16800 | CD16: 5770
B17: 10 | H17: 2100000 | Y17: 2100000 | AC17: 22740 | AL17: 22740 | AP17: 2270 | CA17: 94500 | CB17: 67830 | CC17: 16800 | CD17: 5770
B18: 11 | H18: 2100000 | Y18: 2100000 | AC18: 22740 | AL18: 22740 | AP18: 2270 | CA18: 94500 | CB18: 67830 | CC18: 16800 | CD18: 5770
B19: 12 | H19: 2100000 | Y19: 2100000 | AC19: 22740 | AL19: 22740 | AP19: 2270 | CA19: 94500 | CB19: 67830 | CC19: 16800 | CD19: 5770
B20: 계 | H20: =SUM(H8:L19) -> 25200000 | M20: =SUM(M8:P19) -> 0 | Q20: =SUM(Q8:T19) -> 0 | U20: =SUM(U8:U19) -> 0 | V20: =SUM(V8:V19) -> 0 | W20: =SUM(W8:W19) -> 0 | X20: =SUM(X8:X19) -> 0 | Y20: =SUM(Y8:AB19) -> 25200000 | AC20: =SUM(AC8:AH19) -> 272880 | AI20: =SUM(AI8:AK19) -> 0 | AL20: =SUM(AL8:AO19) -> 272880 | AP20: =SUM(AP8:AS19) -> 24970 | AT20: =SUM(AT8:AW19) -> 0 | BB20: =SUM(BB8:BE19) -> 0 | BF20: =SUM(BF8:BJ19) -> 0 | BK20: =MIN(SUM(BK8:BN19),2400000) -> 0 | BO20: =SUM(BO8:BO19) -> 0 | BP20: =SUM(BP8:BP19) -> 0 | BU20: =SUM(BU8:BZ19) -> 0 | CA20: =SUM(CA8:CA19) -> 1134000 | CB20: =SUM(CB8:CB19) -> 813960 | CC20: =SUM(CC8:CC19) -> 201600 | CD20: =SUM(CD8:CD19) -> 69240
E22: [근무처명] : | M22: ㈜우인 | Y22: [사업자등록번호] : | AI22: 101-81-22222 | AZ22: [근무기간] | BM22: ~ | BR22: [종(전)근무지]
B23: 월별 | E23: 지급일자 | H23: 과 세 대 상 급 여 | AC23: 간이세액표에의한소득세 | AI23: 감면세액 | AL23: 차감원천징수액 | AX23: 비 과 세 소 득 | CA23: 국민연금 | CB23: 건강보험 | CC23: 고용보험 | CD23: 노인장기 요양보험
H24: 급여액 | M24: 상여액 | Q24: 인정상여 | U24: =U6 -> 주식매수 선택권 | V24: =V6 -> 우리사주 조합인출금 | W24: =W6 -> 임원퇴직 소득금액 한도초과액 | X24: =X6 -> 직무발명 보상금 | Y24: 계 | AL24: 소득세 | AP24: =AP6 -> 지방 소득세 | AT24: 농특세 | AX24: 국 외 근 로 소 득 | BF24: =BF6 -> 연구 활동비 | BK24: =BK6 -> 야간 근로수당 | BO24: =BO6 -> 출산 보육수당 | BP24: =BP6 -> 외국인근로자 | BQ24: 그밖의비과세
AX25: 지급일자 | BB25: 원화 | BQ25: 내용 | BU25: 금액
B26: 계 | Y26: =SUM(H26:X26) -> 0
E29: [근무처명] : | Y29: [사업자등록번호] : | AZ29: [근무기간] | BM29: ~ | BR29: [종(전)근무지]
B30: 월별 | E30: 지급일자 | H30: 과 세 대 상 급 여 | AC30: 간이세액표에의한소득세 | AI30: 감면세액 | AL30: 차감원천징수액 | AX30: 비 과 세 소 득 | CA30: 국민연금 | CB30: 건강보험 | CC30: 고용보험 | CD30: 노인장기 요양보험
H31: 급여액 | M31: 상여액 | Q31: 인정상여 | U31: =U24 -> 주식매수 선택권 | V31: =V24 -> 우리사주 조합인출금 | W31: =W24 -> 임원퇴직 소득금액 한도초과액 | X31: =X24 -> 직무발명 보상금 | Y31: 계 | AL31: 소득세 | AP31: =AP24 -> 지방 소득세 | AT31: 농특세 | AX31: 국 외 근 로 소 득 | BF31: =BF24 -> 연구 활동비 | BK31: =BK24 -> 야간 근로수당 | BO31: =BO24 -> 출산 보육수당 | BP31: =BP24 -> 외국인근로자 | BQ31: 그밖의비과세
AX32: 지급일자 | BB32: 원화 | BQ32: 내용 | BU32: 금액
B33: 계 | Y33: =SUM(H33:X33) -> 0
E36: [근무처명] : | Y36: [사업자등록번호] : | AZ36: [근무기간] | BM36: ~ | BT36: [납세조합]
B37: 월별 | E37: 지급일자 | H37: 과 세 대 상 급 여 | AC37: 간이세액표에의한소득세 | AI37: 감면세액 | AL37: 차감원천징수액 | AX37: 비 과 세 소 득 | CA37: 국민연금 | CB37: 건강보험 | CC37: 고용보험 | CD37: 노인장기 요양보험
H38: 급여액 | M38: 상여액 | Q38: 인정상여 | U38: =U31 -> 주식매수 선택권 | V38: =V31 -> 우리사주 조합인출금 | W38: =W31 -> 임원퇴직 소득금액 한도초과액 | X38: =X31 -> 직무발명 보상금 | Y38: 계 | AL38: 소득세 | AP38: =AP31 -> 지방 소득세 | AT38: 농특세 | AX38: 국 외 근 로 소 득 | BF38: =BF31 -> 연구 활동비 | BK38: =BK31 -> 야간 근로수당 | BO38: =BO31 -> 출산 보육수당 | BP38: =BP31 -> 외국인근로자 | BQ38: 그밖의비과세
AX39: 지급일자 | BB39: 원화 | BQ39: 내용 | BU39: 금액
B40: 계 | Y40: =SUM(H40:X40) -> 0
G42: ㅁ 납세조합공제액: | U42: 원

Sheet 인적공제
C4: 인적공제액계산
C6: 인 적 공 제 | D6: 구분 | E6: 성명 | F6: 주민등록번호 | G6: 기본공제 | H6: 관계 | I6: 출산입양1 | J6: 출산입양2 | K6: 장애인 | L6: 자녀 | M6: 경로우대 | N6: 세대주 | O6: 자녀수
D7: 본인 | E7: =신고서!F19 -> 이영화 | F7: =기본사항!$G$8 -> 123456-1234567 | G7: =IF(신고서!N19="○",1,0) -> 1 | H7: =신고서!C19 -> 0 | I7: =IF(신고서!W19="",0,1) -> 1 | J7: =IF(신고서!W19="○1",3,(IF(신고서!W19="○2",5,(IF(신고서!W19="○3",7,0))))) -> 7 | K7: =IF(신고서!T20="",0,1) -> 0 | L7: =IF(신고서!W20="○",1,0) -> 0 | M7: =IF(신고서!T19="○",1,0) -> 0 | N7: =IF(신고서!K8=TRUE,"예","아니오") -> 아니오 | O7: =신고서!L18 -> 0
D8: 부양가족1 | E8: =신고서!F21 -> 조세희 | F8: =신고서!F22 -> 710415-2031653 | G8: =IF(신고서!N21="○",1,0) -> 1 | H8: =신고서!C21 -> 3 | I8: =IF(신고서!W21="",0,1) -> 0 | J8: =IF(신고서!W21="○1",3,(IF(신고서!W21="○2",5,(IF(신고서!W21="○3",7,0))))) -> 0 | K8: =IF(신고서!T22="",0,1) -> 0 | L8: =IF(신고서!W22="○",1,0) -> 0 | M8: =IF(신고서!T21="○",1,0) -> 0 | N8: =IF(H8=3,IF(신고서!N21="",0,1),0) -> 1 | O8: =IF(신고서!N18=1,1,0) -> 0
D9: 부양가족2 | E9: =신고서!F23 -> 편람일 | F9: =신고서!F24 -> 481103-2019015 | G9: =IF(신고서!N23="○",1,0) -> 1 | H9: =신고서!C23 -> 2 | I9: =IF(신고서!W23="",0,1) -> 0 | J9: =IF(신고서!W23="○1",3,(IF(신고서!W23="○2",5,(IF(신고서!W23="○3",7,0))))) -> 0 | K9: =IF(신고서!T24="",0,1) -> 0 | L9: =IF(신고서!W24="○",1,0) -> 0 | M9: =IF(신고서!T23="○",1,0) -> 1 | O9: =IF(신고서!Q18=1,1,0) -> 0
D10: 부양가족3 | E10: =신고서!F25 -> 이대한 | F10: =신고서!F26 -> 091206-4059631 | G10: =IF(신고서!N25="○",1,0) -> 1 | H10: =신고서!C25 -> 4 | I10: =IF(신고서!W25="",0,1) -> 0 | J10: =IF(신고서!W25="○1",3,(IF(신고서!W25="○2",5,(IF(신고서!W25="○3",7,0))))) -> 0 | K10: =IF(신고서!T26="",0,1) -> 0 | L10: =IF(신고서!W26="○",1,0) -> 0 | M10: =IF(신고서!T25="○",1,0) -> 0
D11: 부양가족4 | E11: =신고서!F27 -> 이민국 | F11: =신고서!F28 -> 151230-3059632 | G11: =IF(신고서!N27="○",1,0) -> 1 | H11: =신고서!C27 -> 4 | I11: =IF(신고서!W27="",0,1) -> 0 | J11: =IF(신고서!W27="○1",3,(IF(신고서!W27="○2",5,(IF(신고서!W27="○3",7,0))))) -> 0 | K11: =IF(신고서!T28="",0,1) -> 0 | L11: =IF(신고서!W28="○",1,0) -> 1 | M11: =IF(신고서!T27="○",1,0) -> 0
D12: 부양가족5 | E12: =신고서!H29 -> 0 | F12: =신고서!H30 -> 0 | G12: =IF(신고서!N29="○",1,0) -> 0 | H12: =신고서!C29 -> 0 | I12: =IF(신고서!W29="",0,1) -> 0 | J12: =IF(신고서!W29="○1",3,(IF(신고서!W29="○2",5,(IF(신고서!W29="○3",7,0))))) -> 0 | K12: =IF(신고서!T30="",0,1) -> 0 | L12: =IF(신고서!W30="○",1,0) -> 0 | M12: =IF(신고서!T29="○",1,0) -> 0
D13: 부양가족6 | E13: =신고서!H31 -> 0 | F13: =신고서!H32 -> 0 | G13: =IF(신고서!N31="○",1,0) -> 0 | H13: =신고서!C31 -> 0 | I13: =IF(신고서!W31="",0,1) -> 0 | J13: =IF(신고서!W31="○1",3,(IF(신고서!W31="○2",5,(IF(신고서!W31="○3",7,0))))) -> 0 | K13: =IF(신고서!T32="",0,1) -> 0 | L13: =IF(신고서!W32="○",1,0) -> 0 | M13: =IF(신고서!T31="○",1,0) -> 0
D14: 부양가족7 | E14: =신고서!H33 -> 0 | F14: =신고서!H34 -> 0 | G14: =IF(신고서!N33="○",1,0) -> 0 | H14: =신고서!C33 -> 0 | I14: =IF(신고서!W33="",0,1) -> 0 | J14: =IF(신고서!W33="○1",3,(IF(신고서!W33="○2",5,(IF(신고서!W33="○3",7,0))))) -> 0 | K14: =IF(신고서!T34="",0,1) -> 0 | L14: =IF(신고서!W34="○",1,0) -> 0 | M14: =IF(신고서!T33="○",1,0) -> 0
D15: 부양가족8 | E15: =신고서!H35 -> 0 | F15: =신고서!H36 -> 0 | G15: =IF(신고서!N35="○",1,0) -> 0 | H15: =신고서!C35 -> 0 | I15: =IF(신고서!W35="",0,1) -> 0 | J15: =IF(신고서!W35="○1",3,(IF(신고서!W35="○2",5,(IF(신고서!W35="○3",7,0))))) -> 0 | K15: =IF(신고서!T36="",0,1) -> 0 | L15: =IF(신고서!W36="○",1,0) -> 0 | M15: =IF(신고서!T35="○",1,0) -> 0
D16: 부양가족9 | E16: =신고서!H37 -> 0 | F16: =신고서!H38 -> 0 | G16: =IF(신고서!N37="○",1,0) -> 0 | H16: =신고서!C37 -> 0 | I16: =IF(신고서!W37="",0,1) -> 0 | J16: =IF(신고서!W37="○1",3,(IF(신고서!W37="○2",5,(IF(신고서!W37="○3",7,0))))) -> 0 | K16: =IF(신고서!T38="",0,1) -> 0 | L16: =IF(신고서!W38="○",1,0) -> 0 | M16: =IF(신고서!T37="○",1,0) -> 0
D17: 합계 | G17: =SUM(G7:G16) -> 5 | I17: 1 | J17: 7 | K17: 0 | L17: 1 | M17: 1

Sheet 신용카드
L3: ■ 조세특례제한법 시행규칙[별지 제74호의6서식] <개정(안) 2021. 11.> | AW3: (앞 쪽)
C4: 그밖의 소득공제 | L4: 신용카드 등 소득공제 신청서
L5: 거 주 자 성 명 | W5: =기본사항!G7 -> 이영화 | AD5: 생 년 월 일 | AK5: =LEFT(기본사항!G8,6) -> 123456
C6: 그 밖 의 소 득 공 제 | D6: 개인연금소득공제 | E6: 개인연금저축납입액 | F6: =#REF! ->  | G6: 원 | L6: 근 무 처 명 칭 | W6: =기본사항!G14 -> (주)조세통람 | AD6: 사업자등록번호 | AK6: =기본사항!G16 -> 203-81-11111
D7: 연금저축소득공제 | E7: 연금저축납입액 | G7: 원 | L7: 1. 공제대상자 및 신용카드등사용금액 명세
D8: 소기업소상공인부금 | E8: 연간불입금액 | F8: =#REF! ->  | G8: 원 | L8: 공제대상자 | Y8: 신용카드 등 사용금액
L9: ① 내·외국인 구분 | O9: ② 관계 | R9: ③ 성명 | V9: ④ 생년월일 | Y9: 자료 구분 | AA9: ⑤소 계 (⑥+⑦+⑧+⑨+⑩+⑪) | AD9: ⑥ 신용카드 | AG9: ⑦ 직불· 선불카드 등 | AJ9: ⑧ 현금 영수증 | AL9: ⑨도서공연 등 사용분 (총급여 7천만원 이하자만 기재) | AP9: ⑩ 전통시장 사용분 | AS9: ⑪ 대중교통 이용분 | AV9: ⑪-1 소비증가분
D10: 주택마련저축 소득공제 | E10: 청약저축 | F10: =IF(#REF!="",0,MIN(#REF!,1200000)) ->  | G10: 원 | AV10: 2020년 전체 사용분 | AW10: 2021년 전체 사용분
Y11: 국세청자료 | AD11: 12000000 | AG11: 4500000 | AS11: 1200000
Y12: 그 밖의 자료
Y13: 국세청자료
Y14: 그 밖의 자료
Y15: 국세청자료
Y16: 그 밖의 자료
Y17: 국세청자료
Y18: 그 밖의 자료
E19: 직불ㆍ선불카드(전통시장ㆍ대중교통사용분 제외) | F19: =#REF! ->  | G19: 원 | L19: ⑤-1 합 계 액 | AA19: =신고서!AF135 -> 0 | AD19: =신고서!AF129 -> 0 | AG19: =신고서!AF131 -> 0 | AJ19: =신고서!AF130 -> 0 | AL19: =신고서!AF132 -> 0 | AP19: =신고서!AF133 -> 0 | AS19: =신고서!AF134 -> 0 | AV19: =SUM(AV11:AV18) -> 0 | AW19: =SUM(AW11:AW18) -> 0
E20: 현금영수증(전통시장ㆍ대중교통사용분 제외) | F20: =#REF! ->  | G20: 원 | L20: 2. 신용카드등소득공제금액의 계산
E21: 전통시장사용분 | F21: =#REF! ->  | G21: 원 | L21: ⑫ 신용카드 사용분 공제금액 (⑥×15%) | P21: ⑬직불카드등 사용분 공제금액 (⑦+⑧)×30% | T21: ⑭도서공연 사용분 공제금액 (⑨×30%) | Y21: ⑮전통시장 사용분 공제금액 (⑩×40%) | AD21: ⑯대중교통 이용분 공제금액 (⑪×40%) | AI21: ⑰공제제외금액 계산 | AV21: ⑱ 2021년 신용카드등 사용금액 중 2020년 신용카드등 사용금액 대비 5%를 초과하여 증가한 금액의 10% [(2021년 신용카드등 사용금액)-(2020년 신용카드등 사용금액×105%)]×10%
E22: 대중교통사용분 | F22: =#REF! ->  | G22: 원 | AI22: ⑰-1 총급여 | AN22: ⑰-2 최저사용금액 (⑰-1×25%) | AR22: ⑰-3 공제제외금액
E23: 계 | F23: =#REF! ->  | G23: 원 | L23: =ROUNDDOWN(AD19*0.15,0) -> 0 | P23: =ROUNDDOWN((AG19+AJ19)*0.3,0) -> 0 | T23: =ROUNDDOWN(AL19*0.3,0) -> 0 | Y23: =ROUNDDOWN(AP19*0.4,0) -> 0 | AD23: =ROUNDDOWN(AS19*0.4,0) -> 0 | AI23: =영수증!S63 -> 25200000 | AN23: =ROUNDDOWN(AI23*0.25,0) -> 6300000 | AR23: =IF(AN23<=AD19,AP28,IF(AN23<=(AD19+AG19+AJ19+AL19),AP29,AP30)) -> 2520000 | AV23: =(AW19-AV19*1.05)*10% -> 0
D24: 우리사주소득공제 | E24: 우리사주출연금에 대한 소득공제 | F24: =#REF! ->  | G24: 원 | L24: ⑲공제가능금액 [⑫+⑬+⑭+⑮+⑯ -(⑰-3)+⑱] | P24: ⑳공제한도액 [총급여 수준별 200만원, 250만원, 300만원과 (⑰-1)×20% 중 적은 금액] | U24: ㉑일반 공제금액 (⑲과 ⑳ 중 적은 금액) | Z24: ㉒전통시장 추가 공제금액 [⑲ > ⑳인 경우에 ⑲-⑳과 ⑮(한도:100만원) 중 적은 금액] | AE24: ㉓대중교통 추가 공제금액 [⑲ > ⑳인 경우에 ⑲-⑳-㉒과⑯(한도:100만원) 중 적은 금액] | AJ24: ㉔도서ㆍ공연 등 추가 공제금액 [⑲ > ⑳인 경우에 ⑲-⑳-㉒-㉓과⑭(한도:100만원) 중 적은 금액] | AP24: (25)2021년 신용카드등 사용금액 중 2020년 신용카드등 사용금액 대비 소비증가분에 대한 추가 공제금액[⑲ > ⑳인 경우에 ⑲-⑳-㉒-㉓-㉔과⑱(한도:100만원) 중 적은 금액] | AV24: (26)최종 공제금액 (㉑+㉒+㉓+㉔+(25))
D25: 장기주식저축소득공제 | E25: 장기주식저축에 대한 소득공제 | F25: =#REF! ->  | G25: 원 | L25: =L23+P23+T23+Y23+AD23-AR23 -> -2520000 | P25: =ROUNDDOWN(IF(AI23>120000000,2000000,IF(AI23>70000000,2500000,MIN(3000000,(AI23*0.2)))),0) -> 3000000 | U25: =MIN(L25,P25) -> -2520000 | Z25: =IF(L25>P25,MIN(1000000,MIN(MAX(L25-P25,0),Y23)),0) -> 0 | AE25: =IF(L25>P25,MIN(1000000,MIN(MAX((L25-P25-Z25),0),AD23)),0) -> 0 | AJ25: =IF(L25>P25,MIN(1000000,MIN(MAX((L25-P25-Z25-AE25),0),T23)),0) -> 0 | AP25: =IF(L25>P25,MIN(1000000,MIN(MAX((L25-P25-Z25-AE25-AJ25),0),AV23)),0) -> 0 | AV25: =MAX((U25+Z25+AE25+AJ25+AP25),0) -> 0
D26: 고용유지 중소기업근로자소득공제 | E26: 전년대비 임금삭감액 | F26: =#REF! ->  | G26: 원 | L26: ⑰-3 계산
D27: 목돈안드는전세이자상환 | F27: =#REF! ->  | G27: 원 | L27: 구 분 | Y27: 계산식 | AP27: ⑰-3
L28: ⑥ ≥ (⑰-2) | Y28: (⑰-2)×15% | AP28: =ROUNDDOWN(AN23*0.15,0) -> 945000
L29: ⑥ + ⑦ + ⑧ + ⑨ ≥ (⑰-2) 〉⑥ | Y29: ⑥×15% + {(⑰-2) - ⑥}×30% | AP29: =ROUNDDOWN(L23+((AN23-AD19)*0.3),0) -> 1890000
L30: (⑰-2) > ⑥ + ⑦ + ⑧ + ⑨ | Y30: ⑥×15% + (⑦+⑧+⑨)×30% + {(⑰-2)-⑥-⑦-⑧-⑨}×40% | AP30: =ROUNDDOWN(L23+(AG19+AJ19+AL19)*0.3+(AN23-(AD19+AG19+AJ19+AL19))*0.4,0) -> 2520000
L31: 「조세특례제한법 시행령」제121조의2 제8항에 따라 신용카드등사용금액에 대한 소득공제를 신청합니다.
AN32: 2021년 | AQ32: 월 | AT32: 일
AF33: 신청인 : | AJ33: =W5 -> 이영화 | AM33: (서명 또는 인)
X34: 귀하
L36: 첨부 서류 | O36: 다음 각 호의 어느 하나에 해당하는 서류 1. 신용카드등사용금액확인서(별지 제74호의5서식을 말합니다) 1부 및 승차권 등 대중교통이용분임을 증명할 수 있는 서류(대중교통이용분이 있는 경우로 한정합니다) 2. 소득공제명세를 일괄적으로 기재하여 국세청장이 발급하는 서류(국세청 연말정산간소화 서비스(www.hometax.go.kr→조회/발급→연말정산간소화)에서 제공하는 연말정산소득공제 명세를 말합니다) | AR36: 수수료
AR37: 없음
AW38: 210mm×297mm

Sheet 기부금
B2: 기부금 공제 명세
B4: 구분 | G4: 기부금의 구분 | O4: 2021년 소득공제대상 이월기부금의 지출연도 | W4: 기부금액 | AS4: 소득공제액
B5: 기부금 소득공제 (이월분) | G5: 법정기부금 (법정, 코드10) | O5: 2013년 | W5: 0 | AK5: 법정기부금 한도계산을 위한 소득금액 | AS5: =IF(W5="",0,MIN(W5,AK11)) -> 0
G6: 우리사주기부금 (조특법88의4, 코드42) | W6: 0 | AK6: =MAX((AK10-AS10),0) -> 16170000
G7: 지정기부금 (지정, 코드40) | O7: 2013년 | W7: 0 | AK7: 지정기부금 한도계산을 위한 소득금액 | AS7: =IF(W7="",0,MIN(W7,AK13-AS5)) -> 0
G8: 지정기부금 (종교단체, 코드41) | O8: 2013년 | W8: 0 | AK8: =MAX((AK10-AS10-AS11-AS12),0) -> 16170000 | AS8: =IF(W8="",0,MIN(W8,AK14-AS5-AS7)) -> 0
B9: 구분 | G9: 기부금의 구분 | O9: 기부금의 지출연도 | W9: 기부금액 | AD9: 기부금합계 | AK9: 한도액 | AS9: 소득공제대상 (이월포함) | AZ9: 세액공제대상 (이월제외) | BG9: 세액공제액
B10: 기부금 세액공제 | G10: 정치자금기부금 (조특법76, 코드20) | O10: 2021년 | AD10: =W10 -> 0 | AK10: =영수증!S65 -> 16170000 | AS10: =MIN(AD10,AK10) -> 0 | AZ10: =MIN(AK10,AS10) -> 0 | BG10: =ROUNDDOWN(IF(AZ10<=29900000,(AZ10*0.15),(AZ10-29900000)*0.25+4485000),0) -> 0
G11: 법정기부금 (법정, 코드10) | O11: 2016년~2021년 | AD11: =W11 -> 0 | AK11: =MAX(AK10-AS10,0) -> 16170000 | AS11: =MIN(AD11,AK11) -> 0 | AZ11: =MAX((AS11-AS5),0) -> 0 | BG11: =IF(BG15=0,0,ROUNDDOWN((AZ11/AZ15)*BG15,0)) -> 0
G12: 우리사주기부금 (조특법88의4, 코드42) | O12: 2021년 | W12: 0 | AD12: =W12 -> 0 | AK12: =MAX((AK10-AS10-AS11)*0.3,0) -> 4851000 | AS12: =MIN(AD12,AK12) -> 0 | AZ12: =MAX((AS12-AS6),0) -> 0 | BG12: =IF(BG15=0,0,ROUNDDOWN((AZ12/AZ15)*BG15,0)) -> 0
G13: 지정기부금 (지정, 코드40) | O13: 2016년~2021년 | W13: 0 | AD13: =W7+W13 -> 0 | AK13: =IF(AD14>0,(AK8*0.1)+MIN((AK8*0.2),W13),AK8*0.3) -> 4851000 | AS13: =MIN(AD13,AK13) -> 0 | AZ13: =MAX(((AS13-AS7)+(AS14-AS8)),0) -> 0 | BG13: =IF(BG15=0,0,ROUNDDOWN((AZ13/AZ15)*BG15,0)) -> 0
G14: 지정기부금 (종교단체, 코드41) | O14: 2016년~2021년 | W14: 0 | AD14: =W8+W14 -> 0 | AK14: =AK13 -> 4851000 | AS14: =MIN(AD14,AK14-AS13) -> 0
G15: 0 | W15: 0 | AS15: =SUM(AS10:AY14) -> 0 | AZ15: =SUM(AZ11:BF14) -> 0 | BG15: =ROUNDDOWN(IF(AZ15<=20000000,(AZ15*0.15),(AZ15-20000000)*0.3+3000000),0) -> 0

Sheet 감면
C7: 세액감면 | G7: 감면액 계산 테이블
C8: 구 분 | D8: 감면세액 계산식 | E8: 감면세액 | H8: 산출세액 | I8: 감면대상금액 (입력) | J8: 총급여액 또는 종합소득금액 | K8: 감면율 | L8: 감면세액
C9: 해외조광권자 등이 외국인에게 지급하는 급여 | D9: 종합소득산출세액×(감면대상근로소득금액÷종합소득금액) | G9: 조광권자 | H9: =#REF! ->  | J9: 1 | L9: =(H9*I9/J9)*K9 -> 
C10: 중소기업 취업자 세액감면 (조세특례제한법 제30조) | D10: 산출세액 ×(감면대상총급여액 ÷총급여액)×(50%,70%,90%,100%) | E10: =L10 -> 0 | G10: 중소기업 취업자 | H10: =영수증!AN65 -> 214872 | I10: 0 | J10: =영수증!S63 -> 25200000 | K10: 0.7 | L10: =ROUNDDOWN((H10*I10/J10)*K10,0) -> 0 | M10: =ROUNDDOWN(MAX(0, MIN(영수증!AL71,영수증!AM71))*(1-(감면!I10*감면!K10)/영수증!S63),0) -> 118179
C13: 감면대상자/취업일 | D13: 감면율
C14: 청년 '12~'13년 | D14: 100%(한도없음). 단 '18년 이후 90%(150만원 한도)
C15: 청년 '14~'15년 | D15: 50%(한도없음). 단 '18년 이후 90%(150만원 한도)
C16: 청년 '16~'17년 | D16: 70%(한도없음). 단 '18년 이후 90%(150만원 한도)
C17: 청년 '18~'21년 | D17: 90%(150만원 한도)
C18: 60세이상자 장애인 '14~'15년 | D18: 50%(한도없음)
C19: 60세이상자 장애인 '16~'21년 | D19: 70%(150만원 한도)
C20: 경력단절여성 '17~'21년 | D20: 70%(150만원 한도)

Sheet 영수증
B2: ■ 소득세법 시행규칙 [별지 제24호서식(1)] <2021. 03. 16. 개정> | AT2: (제1쪽)
C4: 관리 번호 | AJ4: 거주구분 | AN4: 거주자1 | AR4: 비거주자2
T5: 근로소득 원천징수영수증 | AJ5: 거주지국 | AM5: =신고서!AJ10 -> 한국 | AO5: 거주지국코드 | AS5: =신고서!AS10 -> KR
T6: 근 로 소 득 지 급 명 세 서 | AJ6: 내외국인 | AM6: TRUE | AN6: 내국인1 | AQ6: =IF(#REF!=9,TRUE,FALSE) ->  | AR6: 외국인9
AJ7: 외국인단일세율적용 | AP7: FALSE | AQ7: 여1 | AR7: TRUE | AS7: 부2
P8: ( | R8: 소득자보관용 | W8: 발행자보관용 | AC8: 발행자보고용) | AJ8: 외국법인소속파견근로자여부 | AP8: FALSE | AQ8: 여1 | AR8: TRUE | AS8: 부2
AJ9: 종교관련종사자 여부 | AP9: FALSE | AQ9: 여1 | AR9: TRUE | AS9: 부2
AJ10: 국적 | AM10: =신고서!AJ7 -> 한국 | AO10: 국적코드 | AS10: =신고서!AS7 -> KR
AJ11: 세대주여부 | AN11: 세대주1 | AR11: 세대원2
AJ12: 연말정산구분 | AN12: 계속근로1, 중도퇴사2
B14: 징수 의무자 | I14: (1) 법 인 명 (상 호) | R14: =기본사항!$G$14 -> (주)조세통람 | AC14: (2) 대 표 자(성명) | AK14: =기본사항!$G$15 -> 김철수
I15: (3) 사업자등록번호 | R15: =기본사항!$G$16 -> 203-81-11111 | AC15: (4) 주 민 등 록 번 호 | AK15: =기본사항!$G$17 -> 123456-1234567
I16: (3)-1 사업자단위과세자 여부 | R16: 여1 / 부1 | X16: FALSE | AC16: (3)-2 종사업장 일련번호
I17: (5) 소 재 지 (주 소) | R17: =기본사항!$G$18 -> 서울 중구 동호로14길 5-6 | X17: TRUE
B18: 소득자 | I18: (6) 성 명 | R18: =기본사항!$G$7 -> 이영화 | AC18: (7) 주 민 등 록 번 호 | AK18: =기본사항!$G$8 -> 123456-1234567
I19: (8) 주 소 | R19: =기본사항!$G$9 -> 서울 중구 다산로11길 25
B21: Ⅰ 근무처별소득명세 | C21: 구 분 | R21: 주(현) | W21: 종(전) | AC21: 종(전) | AI21: (16)-1납세조합 | AO21: 합 계
C22: (9) 근 무 처 명 | R22: =R14 -> (주)조세통람 | W22: =급여내역!M22 -> ㈜우인 | AC22: =급여내역!M29 -> 0 | AI22: =급여내역!M36 -> 0
C23: (10) 사업자등록번호 | R23: =R15 -> 203-81-11111 | W23: =급여내역!AI22 -> 101-81-22222 | AC23: =급여내역!AI29 -> 0 | AI23: =급여내역!AI36 -> 0
C24: (11) 근무기간 | R24: =TEXT(급여내역!BG4,"yy/mm/dd")&"~"&TEXT(급여내역!BO4,"yy/mm/dd") -> 21/01/01~21/12/31 | W24: =IF(급여내역!BG22="","",TEXT(급여내역!BG22,"yy/mm/dd")&"~"&TEXT(급여내역!BO22,"yy/mm/dd")) ->  | AC24: =IF(급여내역!BG29="","",TEXT(급여내역!BG29,"yy/mm/dd")&"~"&TEXT(급여내역!BO29,"yy/mm/dd")) ->  | AI24: =IF(급여내역!BG36="","",TEXT(급여내역!BG36,"yy/mm/dd")&"~"&TEXT(급여내역!BO36,"yy/mm/dd")) ->  | AO24: ~
C25: (12) 감면기간 | R25: ~ | W25: ~ | AC25: ~ | AI25: ~ | AO25: ~
C26: (13) 급 여 | R26: =급여내역!H20 -> 25200000 | W26: =급여내역!H26 -> 0 | AC26: =급여내역!H33 -> 0 | AI26: =급여내역!H40 -> 0 | AO26: =SUM(R26:AN26) -> 25200000
C27: (14) 상 여 | R27: =급여내역!M20 -> 0 | W27: =급여내역!M26 -> 0 | AC27: =급여내역!M33 -> 0 | AI27: =급여내역!M40 -> 0 | AO27: 0
C28: (15) 인 정 상 여 | R28: =급여내역!Q20 -> 0 | W28: =급여내역!Q26 -> 0 | AC28: =급여내역!Q33 -> 0 | AI28: =급여내역!Q40 -> 0 | AO28: 0
C29: (15)-1 주식매수선택권 행사이익 | R29: =급여내역!U20 -> 0 | W29: =급여내역!U26 -> 0 | AC29: =급여내역!U33 -> 0 | AI29: =급여내역!U40 -> 0 | AO29: 0
C30: (15)-2 우리사주조합인출금 | R30: =급여내역!V20 -> 0 | W30: =급여내역!V26 -> 0 | AC30: =급여내역!V33 -> 0 | AI30: =급여내역!V40 -> 0 | AO30: 0
C31: (15)-3 임원 퇴직소득금액 한도초과액 | R31: =급여내역!W20 -> 0 | W31: =급여내역!W26 -> 0 | AC31: =급여내역!W33 -> 0 | AI31: =급여내역!W40 -> 0 | AO31: 0
C32: (15)-4 직무발명보상금 | R32: =급여내역!X20 -> 0 | W32: =급여내역!X26 -> 0 | AC32: =급여내역!X33 -> 0 | AI32: =급여내역!X40 -> 0 | AO32: 0
C33: (16) 계 | R33: =SUM(R26:V32) -> 25200000 | W33: =SUM(W26:AB32) -> 0 | AC33: =SUM(AC26:AH32) -> 0 | AI33: =SUM(AI26:AN32) -> 0 | AO33: =SUM(AO26:AT32) -> 25200000
B34: Ⅱ 비과세및감면소득명세 | C34: (18) 국외근로 | O34: M0X | R34: =급여내역!BB20 -> 0 | W34: =급여내역!BB26 -> 0 | AC34: =급여내역!BB33 -> 0 | AI34: =급여내역!BB40 -> 0 | AO34: =SUM(R34:AN34) -> 0
C35: (18)-1 야간근로수당 | O35: O0X | R35: =급여내역!BK20 -> 0 | W35: =급여내역!BK26 -> 0 | AC35: =급여내역!BK33 -> 0 | AI35: =급여내역!BK40 -> 0 | AO35: =SUM(R35:AN35) -> 0
C36: (18)-2 출산.보육수당 | O36: Q0X | R36: =급여내역!BO20 -> 0 | W36: =급여내역!BO26 -> 0 | AC36: =급여내역!BO33 -> 0 | AI36: =급여내역!BO40 -> 0 | AO36: =SUM(R36:AN36) -> 0
C37: (18)-4 연구보조비 | O37: H0X | R37: =급여내역!BF20 -> 0 | W37: =급여내역!BF26 -> 0 | AC37: =급여내역!BF33 -> 0 | AI37: =급여내역!BF40 -> 0 | AO37: 0
C38: (18)-5 | AO38: 0
C39: (18)-6 | AO39: 0
C40: ~ | AO40: 0
C41: (18)-34 | AO41: =SUM(R41:AN41) -> 0
C42: (19) 수련보조수당 | O42: Y22 | AO42: 0
C43: (20) 비과세소득 계 | R43: =SUM(R34:V42) -> 0 | W43: =SUM(W34:AB42) -> 0 | AC43: =SUM(AC34:AH42) -> 0 | AI43: =SUM(AI34:AN42) -> 0 | AO43: =SUM(R43:AN43) -> 0
C44: (20)-1 감면소득 계
B45: Ⅲ 세액명세 | C45: 구 분 | V45: (78) 소 득 세 | AE45: (79) 지 방 소 득 세 | AL45: (80) 농 어 촌 특 별 세
C46: (72) 결 정 세 액 | V46: =AN109 -> 0 | AE46: =ROUNDDOWN(V46*0.1,0) -> 0 | AL46: =ROUNDDOWN(AN104*0.2,0) -> 0
C47: 기납부세액 | G47: (73)종(전)근무지(결정세액란의 세액기재) | K47: 사업자등록번호 | M47: =급여내역!AI22 -> 101-81-22222 | V47: =급여내역!AL26 -> 0 | AE47: =급여내역!AP26 -> 0 | AL47: =급여내역!AT26 -> 0
M48: =급여내역!AI29 -> 0 | V48: =급여내역!AL33 -> 0 | AE48: =급여내역!AP33 -> 0 | AL48: =급여내역!AT33 -> 0
M49: =급여내역!AI36 -> 0 | V49: =급여내역!AL40 -> 0 | AE49: =급여내역!AP40 -> 0 | AL49: =급여내역!AT40 -> 0
G50: (74)주(현)근무지 | V50: =급여내역!AL20 -> 272880 | AE50: =급여내역!AP20 -> 24970 | AL50: =급여내역!AT20 -> 0
C51: (75) 납부특례세액
C52: (76)차감징수세액((72)-(73)-(74)-(75)) | V52: =IF(ROUNDDOWN(V46-V47-V48-V49-V50-V51,-1)<0,ROUNDDOWN(V46-V47-V48-V49-V50-V51,-1),IF(ROUNDDOWN(V46-V47-V48-V49-V50-V51,-1)>=1000,ROUNDDOWN(V46-V47-V48-V49-V50-V51,-1),0)) -> -272880 | AE52: =IF(ROUNDDOWN(AE46-AE47-AE48-AE49-AE50-AE51,-1)<0,ROUNDDOWN(AE46-AE47-AE48-AE49-AE50-AE51,-1),IF(ROUNDDOWN(AE46-AE47-AE48-AE49-AE50-AE51,-1)>=1000,ROUNDDOWN(AE46-AE47-AE48-AE49-AE50-AE51,-1),0)) -> -24970 | AL52: =IF(ROUNDDOWN(AL46-AL47-AL48-AL49-AL50-AL51,-1)<0,ROUNDDOWN(AL46-AL47-AL48-AL49-AL50-AL51,-1),IF(ROUNDDOWN(AL46-AL47-AL48-AL49-AL50-AL51,-1)>=1000,ROUNDDOWN(AL46-AL47-AL48-AL49-AL50-AL51,-1),0)) -> 0
M53: 위의 원천징수액(근로소득)을 정히 영수(지급)합니다
O55: =기본사항!G19 -> 2022-03-02
Z56: 징수(보고)의무자 | AH56: =기본사항!G15 -> 김철수 | AS56: (서명 또는 인)
G58: =기본사항!G20 -> 중부세무서장 | O58: 귀하
AT61: 210㎜×297㎜
AT62: (제2쪽)
B63: Ⅳ 정 산 명 세 | C63: (21) 총 급 여 ((16), 다만 외국인단일세율 적용시에는 연간 근로소득) | S63: =AO33 -> 25200000 | Z63: (48) 종합소득과세표준 | AN63: =S95-S108+S109 -> 3581200
C64: (22) 근 로 소 득 공 제 | S64: =ROUNDDOWN(IF(S63>100000000,(S63*0.02+12750000),IF(S63>45000000,(S63*0.05+9750000),IF(S63>15000000,(S63*0.15+5250000),IF(S63>5000000,(S63*0.4+1500000),IF(S63>0,(S63*0.7)))))),0) -> 9030000
C65: (23) 근 로 소 득 금 액 | S65: =S63-S64 -> 16170000 | Z65: (49) 산 출 세 액 | AN65: =ROUNDDOWN(IF(AN63>1000000000,(AN63*0.45-65400000),IF(AN63>500000000,(AN63*0.42-35400000),IF(AN63>300000000,(AN63*0.4-25400000),IF(AN63>150000000,(AN63*0.38-19400000),IF(AN63>88000000,(AN63*0.35-14900000),IF(AN63>46000000,(AN63*0.24-5220000),IF(AN63>12000000,(AN63*0.15-1080000),IF(AN63>0,(AN63*0.06))))))))),0) -> 214872
C66: 종합소득공제 | D66: 기 본 공 제 | I66: (24) 본인 | S66: =MIN(IF(인적공제!E7="","",1500000),S65) -> 1500000 | Z66: 세 액 감 면 | AC66: (50) 소 득 세 법 | AN66: 0
I67: (25) 배우자 | S67: =MIN(IF(인적공제!N8=0,0,1500000),MAX(S65-S66,0)) -> 1500000 | AC67: (51) 조세특례제한법((52) 제외) | AN67: 0
I68: (26) 부양가족 ( | O68: =인적공제!G17-인적공제!G7-인적공제!N8 -> 3 | P68: ) | Q68: 명 | S68: =MIN((O68*1500000),MAX(S65-SUM(S66:Y67))) -> 4500000 | AC68: (52) 조세특례제한법 제30조 | AN68: =IF(감면!E10="",0,MIN(감면!E10,MAX((AN65-SUM(AN66:AT67)),0))) -> 0
D69: 추 가 공 제 | I69: (27) 경로우대 ( | O69: =인적공제!M17 -> 1 | P69: ) | Q69: 명 | S69: =MIN(O69*1000000,MAX(S65-SUM(S66:Y68),0)) -> 1000000 | AC69: (53) 조 세 조 약 | AN69: 0
I70: (28) 장애인 ( | N70: =인적공제!K17 -> 0 | O70: ) | P70: 명 | S70: =MIN(N70*2000000,MAX(S65-SUM(S66:Y69),0)) -> 0 | AC70: (54) 세 액 감 면 계 | AN70: =SUM(AN66:AT69) -> 0
I71: (29) 부녀자 | S71: =IF(S65<=30000000,MIN(IF(인적공제!O8=1,500000,0),MAX(S65-SUM(S66:Y70),0)),0) -> 0 | Z71: 세 액 공 제 | AC71: (55) 근로소득 | AL71: =ROUNDDOWN(IF(AN65>1300000,(AN65*0.3+325000),AN65*0.55),0) -> 118179 | AM71: =ROUNDDOWN(IF(S63>70000000,MAX(500000,(660000-(S63-70000000)*0.5)),IF(S63>33000000,MAX(660000,(740000-(S63-33000000)*0.008)),740000)),0) -> 740000 | AN71: =IF(AN68>0,감면!M10,MIN(MIN(AL71,AM71),MAX((AN65-AN70),0))) -> 118179
I72: (30) 한 부 모 가 족 | S72: =MIN(IF(인적공제!O9=1,1000000,0),MAX(S65-SUM(S66:Y71),0)) -> 0 | AC72: (56) 자녀 | AE72: 공제대상자녀 | AJ72: ( | AK72: =인적공제!O7 -> 0 | AL72: ) | AM72: 명 | AN72: =MIN(IF(AK72=1,150000,IF(AK72=2,300000,IF(AK72>2,((AK72-2)*300000+300000),0))),MAX((AN65-AN70-AN71),0)) -> 0
D73: 연 금 보 험 료 공 제 | I73: (31) 국민연금보험료 | S73: =MIN(신고서!AR90+신고서!AR91,MAX(S65-SUM(S66:Y72),0)) -> 1134000
I74: (32) 공적 연금 보험료공제 | K74: ㉮공무원연금 | S74: =MIN(신고서!AR92+신고서!AR93,MAX(S65-SUM(S66:Y73),0)) -> 300000 | AE74: 출산·입양자 | AJ74: ( | AK74: =인적공제!I17 -> 1 | AL74: ) | AM74: 명 | AN74: =IF(AK74>=1,인적공제!J17*100000,0) -> 700000
K75: ㉯군인연금 | AC75: 연금 계좌 | AE75: (57)「과학기술인공제회법」 에 따른 퇴직연금 | AJ75: 공제대상금액 | AN75: =신고서!AL151 -> 0
K76: ㉰사립학교교직원연금 | AJ76: 세액공제액 | AN76: =IF(S63<=55000000,ROUNDDOWN(AN75*0.15,0),ROUNDDOWN(AN75*0.12,0)) -> 0
K77: ㉱별정우체국연금 | AE77: (58)「근로자퇴직급여 보장법」에 따른 퇴직연금 | AJ77: 공제대상금액 | AN77: =신고서!AL152 -> 0
D78: 특 별 소 득 공 제 | I78: (33) 보험료 | K78: ㉮건강보험료 (노인장기요양보험료포함) | S78: =MIN(신고서!AR95+신고서!AR96,MAX(S65-SUM(S66:Y77),0)) -> 933200 | AJ78: 세액공제액 | AN78: =IF(S63<=55000000,ROUNDDOWN(AN77*0.15,0),ROUNDDOWN(AN77*0.12,0)) -> 0
K79: ㉯고용보험료 | S79: =MIN(신고서!AR97+신고서!AR98,MAX(S65-SUM(S66:Y78),0)) -> 201600 | AE79: (59)연금저축 | AJ79: 공제대상금액 | AN79: =신고서!AL153 -> 0
I80: (34) 주택 자금 | K80: ㉮주택임차차입금원리금상환액 | O80: 대출기관 | S80: =MIN(신고서!AR100,MAX(S65-SUM(S66:Y79),0)) -> 1520000 | AJ80: 세액공제액 | AN80: =IF(S63<=55000000,ROUNDDOWN(AN79*0.15,0),ROUNDDOWN(AN79*0.12,0)) -> 0
AC81: 특별세액공제 | AE81: (60) 보험료 | AG81: 보장성 | AJ81: 공제대상금액 | AN81: =신고서!AL155 -> 0
O82: 거주자 | S82: =MIN(신고서!AR101,MAX(S65-SUM(S66:Y80),0)) -> 0 | AJ82: 세액공제액 | AN82: =신고서!AT155 -> 0
AG83: 장애인 전용 보장성 | AJ83: 공제대상금액 | AN83: =신고서!AL156 -> 0
K84: ㉯ 장기 주택 저당 차입금 이자 상환액 | M84: 2011년이전차입분 | O84: 15년미만 | S84: =MIN(신고서!AR102,MAX(S65-SUM(S66:Y83),0)) -> 0 | AJ84: 세액공제액 | AN84: =신고서!AT156 -> 0
O85: 15년~29년 | S85: =MIN(신고서!AR103,MAX(S65-SUM(S66:Y84),0)) -> 0 | AE85: (61)의료비 | AJ85: 공제대상금액 | AN85: =신고서!AL162 -> 0
O86: 30년이상 | S86: =MIN(신고서!AR104,MAX(S65-SUM(S66:Y85),0)) -> 0 | AJ86: 세액공제액 | AN86: =신고서!AT162 -> 0
M87: 2012년이후차입분(15년이상) | O87: 고정금리이거나 비거치상환대출 | S87: =MIN(신고서!AR105,MAX(S65-SUM(S66:Y86),0)) -> 0 | AE87: (62)교육비 | AJ87: 공제대상금액 | AN87: =신고서!AL169 -> 0
O88: 그 밖의 대출 | S88: =MIN(신고서!AR106,MAX(S65-SUM(S66:Y87),0)) -> 0 | AJ88: 세액공제액 | AN88: =신고서!AT169 -> 0
M89: 2015년 이후 차입분 | O89: 15년 이상 | P89: 고정금리이면서, 비거치상환 | S89: =MIN(신고서!AR107,MAX(S65-SUM(S66:Y88),0)) -> 0 | AE89: (63)기부금 | AF89: ㉮ 정치자금기부금 | AH89: 10만원이하 | AJ89: 공제대상금액 | AN89: =신고서!AL170 -> 0
P90: 고정금리이거나, 비거치상환 | S90: =MIN(신고서!AR108,MAX(S65-SUM(S66:Y89),0)) -> 0 | AJ90: 세액공제액 | AN90: =신고서!AT170 -> 0
P91: 그 밖의 대출 | S91: =MIN(신고서!AR109,MAX(S65-SUM(S66:Y90),0)) -> 0 | AH91: 10만원초과 | AJ91: 공제대상금액 | AN91: =신고서!AL171 -> 0
O92: 10년~15년 | P92: 고정금리이거나, 비거치상환 | S92: =MIN(신고서!AR110,MAX(S65-SUM(S66:Y91),0)) -> 0 | AJ92: 세액공제액 | AN92: =신고서!AT171 -> 0
I93: (35) 기부금(이월분) | S93: =MIN(신고서!AR115,MAX(S65-SUM(S66:Y89),0)) -> 0 | AF93: ㉯ 「소득세법」 제34조 제2항 제1호에 따른 기부금 | AJ93: 공제대상금액 | AN93: =신고서!AL172 -> 0
I94: (36) 계 | S94: =IF(S65=0,0,SUM(S78:Y93)) -> 2654800 | AJ94: 세액공제액 | AN94: =신고서!AT172 -> 0
C95: (37) 차 감 소 득 금 액 | S95: =MAX(0,S65-SUM(S66:Y77)-S94) -> 3581200 | AF95: ㉰ 우리사주 조합기부금 | AJ95: 공제대상금액 | AN95: =신고서!AL173 -> 0
C96: 그 밖 의 소 득 공 제 | G96: (38) 개인연금저축 | S96: =MIN(신고서!AR116,S95) -> 0 | AJ96: 세액공제액 | AN96: =신고서!AT173 -> 0
G97: (39)소기업·소상공인공제부금 | S97: =MIN(신고서!AR117,MAX((S95-S96),0)) -> 0 | AF97: ㉱ 「소득세법」제34조 제3항 제1호의 기부금(종교단체 외) | AJ97: 공제대상금액 | AN97: =신고서!AL174 -> 0
G98: (40)주택 마련저축소득공제 | K98: ㉮청약저축 | S98: =MIN(신고서!$AR$118,MAX((S95-SUM(S96:S97)),0)) -> 0 | AJ98: 세액공제액 | AN98: =신고서!AT174 -> 0
AF99: ㉲ 소득세법」제34조 제3항 제1호의 기부금(종교단체) | AJ99: 공제대상금액 | AN99: =신고서!AL175 -> 0
K100: ㉯주택청약종합저축 | S100: =MIN(신고서!$AR$120,MAX((S95-SUM(S96:S98)),0)) -> 0 | AJ100: 세액공제액 | AN100: =신고서!AT175 -> 0
K101: ㉰근로자주택마련저축 | S101: =MIN(신고서!$AR$119,MAX((S95-SUM(S96:S100)),0)) -> 0 | AE101: (64)계 | AN101: =AN82+AN84+AN86+AN88+AN90+AN92+AN94+AN96+AN98+AN100 -> 0
G102: (41)투자조합출자 등 | S102: =MIN(신고서!AR128,MAX((S95-SUM(S96:S101)),0)) -> 0 | AE102: (65)표준세액공제 | AM102: =(S78+SUM(S80:Y83)+SUM(S84:Y93))*0.12+AN82+AN84+AN86+AN88+AN94+AN98+AN100+AN107 -> 294384 | AN102: =IF(AM102>130000,"",130000) -> 
G103: (42)신용카드등 사용액 | S103: =MIN(신고서!$AR$135,MAX((S95-SUM(S96:S102)),0)) -> 0 | AC103: (66) 납 세 조 합 공 제 | AN103: =급여내역!P42 -> 0
G104: (43) 우리사주조합 출연금 | S104: =MIN(신고서!$AR$136,MAX((S95-SUM(S96:S103)),0)) -> 0 | AC104: (67) 주 택 차 입 금 | AN104: =신고서!AR183 -> 0
AC105: (68) 외 국 납 부 | AN105: =IF(S65=0,0,MIN(신고서!AF179,(AN65*(신고서!AR177/영수증!S65)))) -> 0
G106: (44)고용유지 중소기업 근로자 | S106: =MIN(신고서!$AR$137,MAX((S95-SUM(S96:S105)),0)) -> 0 | AC106: (69) 월세액 | AJ106: 공제대상금액 | AN106: =신고서!AF184 -> 0
G107: (45)장기집합투자증권저축 | S107: =MIN(신고서!AR138,MAX((S95-SUM(S96:S106)),0)) -> 0 | AJ107: 세액공제액 | AN107: =신고서!AR184 -> 0
G108: (46)그밖의소득공제 계 | S108: =SUM(S96:Y107) -> 0 | AC108: (70) 세액공제 계 | AN108: =MIN((AN71+AN72+AN74+AN76+AN78+AN80+MAX(AN101,AN102)+AN103+AN104+AN105+AN107),MAX(0,(AN65-AN70))) -> 214872
C109: (47) 소득공제 종합한도 초과액 | S109: =MAX((SUM(S80:Y93)+SUM(S97:Y104)-S102+S107)-25000000,0) -> 0 | Z109: (71) 결 정 세 액( (49)-(54)-(70) ) | AN109: =MAX(0,+AN65-AN70-AN108) -> 0
Z110: (81) 실효세율(%)( (71)/(21) )x100 | AN110: =+AN109/S63*100 -> 0
AT111: 210㎜×297㎜
B112: (77) 소득·세액공제 명세[인적공제항목은 해당란에 "○"표시(장애인 해당 시 해당 코드 기재)를 하며, 각종 소득공제·세액공제 항목은 공제를 위하여 실제 지출한 금액을 적습니다.]
B114: 인적공제항목 | W114: 각종 소득공제ㆍ세액공제 항목
B115: 관계코드 | E115: 성명 | M115: 기본공제 | S115: 경로우대 | U115: 출산입양 | W115: 자료 구분 | Z115: 보험료 | AH115: 의료비 | AQ115: 교육비
B116: 내ㆍ외 국인 | E116: 주민등록번호 | M116: 부녀자 | P116: 한부모 | S116: 장애인 | U116: 자녀 | Z116: 건강 | AB116: 고용 | AD116: 보장성 | AF116: 장애인 전용 보장성 | AH116: 일반 | AJ116: 난임 | AL116: 65세이상•장애인 건강보험산정 특례자 | AO116: 실손의료 보험금 | AQ116: 일반 | AS116: 장애인 특수교육
B117: 인적공제 항목에 해당하는 | M117: =신고서!N17 -> 5 | S117: =신고서!T17 -> 1 | U117: =신고서!W17 -> 1 | W117: 국세청계 | Z117: =신고서!AD17 -> 0 | AB117: =신고서!AF17 -> 0 | AD117: =신고서!AH17 -> 0 | AF117: =신고서!AJ17 -> 0 | AH117: =신고서!AL17 -> 0 | AJ117: =신고서!AN17 -> 0 | AL117: =신고서!AP17 -> 0 | AO117: =신고서!AR17 -> 0 | AQ117: =신고서!AT17 -> 0 | AS117: =신고서!AV17 -> 0
B118: 인원수를 기재 (자녀: | K118: =신고서!L18 -> 0 | L118: 명) | M118: =신고서!N18 ->  | P118: =신고서!Q18 ->  | S118: =신고서!T18 -> 0 | U118: =신고서!W18 -> 1 | W118: 기타계 | Z118: =신고서!AD18 -> 883200 | AB118: =신고서!AF18 -> 201600 | AD118: =신고서!AH18 -> 0 | AF118: =신고서!AJ18 -> 0 | AH118: =신고서!AL18 -> 0 | AJ118: =신고서!AN18 -> 0 | AL118: =신고서!AP18 -> 0 | AO118: =신고서!AR18 -> 0 | AQ118: =신고서!AT18 -> 0 | AS118: =신고서!AV18 -> 0
B119: =신고서!C19 -> 0 | E119: =신고서!F19 -> 이영화 | M119: =신고서!N19 -> ○ | S119: =신고서!T19 -> 0 | U119: =신고서!W19 -> ○3 | W119: 국세청 | Z119: =신고서!AD19 -> 0 | AB119: =신고서!AF19 -> 0 | AD119: =신고서!AH19 -> 0 | AF119: =신고서!AJ19 -> 0 | AH119: =신고서!AL19 -> 0 | AJ119: =신고서!AN19 -> 0 | AL119: =신고서!AP19 -> 0 | AO119: =신고서!AR19 -> 0 | AQ119: =신고서!AT19 -> 0 | AS119: =신고서!AV19 -> 0
B120: =신고서!C20 -> 1 | G120: =신고서!F20 -> (근로자 본인) | M120: =신고서!N20 -> 0 | P120: =신고서!Q20 -> 0 | S120: =신고서!T20 -> 0 | U120: =신고서!W20 -> 0 | W120: 기타 | Z120: =신고서!AD20 -> 883200 | AB120: =신고서!AF20 -> 201600 | AD120: =신고서!AH20 -> 0 | AF120: =신고서!AJ20 -> 0 | AH120: =신고서!AL20 -> 0 | AJ120: =신고서!AN20 -> 0 | AL120: =신고서!AP20 -> 0 | AO120: =신고서!AR20 -> 0 | AQ120: =신고서!AT20 -> 0 | AS120: =신고서!AV20 -> 0
B121: =신고서!C21 -> 3 | E121: =신고서!F21 -> 조세희 | M121: =신고서!N21 -> ○ | S121: =신고서!T21 -> 0 | U121: =신고서!W21 -> 0 | W121: 국세청 | Z121: =신고서!AD21 -> 0 | AB121: =신고서!AF21 -> 0 | AD121: =신고서!AH21 -> 0 | AF121: =신고서!AJ21 -> 0 | AH121: =신고서!AL21 -> 0 | AJ121: =신고서!AN21 -> 0 | AL121: =신고서!AP21 -> 0 | AO121: =신고서!AR21 -> 0 | AQ121: =신고서!AT21 -> 0 | AS121: =신고서!AV21 -> 0
B122: =신고서!C22 -> 1 | G122: =신고서!F22 -> 710415-2031653 | M122: =신고서!N22 -> 0 | P122: =신고서!Q22 -> 0 | S122: =신고서!T22 -> 0 | U122: =신고서!W22 -> 0 | W122: 기타 | Z122: =신고서!AD22 -> 0 | AB122: =신고서!AF22 -> 0 | AD122: =신고서!AH22 -> 0 | AF122: =신고서!AJ22 -> 0 | AH122: =신고서!AL22 -> 0 | AJ122: =신고서!AN22 -> 0 | AL122: =신고서!AP22 -> 0 | AO122: =신고서!AR22 -> 0 | AQ122: =신고서!AT22 -> 0 | AS122: =신고서!AV22 -> 0
B123: =신고서!C23 -> 2 | E123: =신고서!F23 -> 편람일 | M123: =신고서!N23 -> ○ | S123: =신고서!T23 -> ○ | U123: =신고서!W23 -> 0 | W123: 국세청 | Z123: =신고서!AD23 -> 0 | AB123: =신고서!AF23 -> 0 | AD123: =신고서!AH23 -> 0 | AF123: =신고서!AJ23 -> 0 | AH123: =신고서!AL23 -> 0 | AJ123: =신고서!AN23 -> 0 | AL123: =신고서!AP23 -> 0 | AO123: =신고서!AR23 -> 0 | AQ123: =신고서!AT23 -> 0 | AS123: =신고서!AV23 -> 0
B124: =신고서!C24 -> 1 | G124: =신고서!F24 -> 481103-2019015 | M124: =신고서!N24 -> 0 | P124: =신고서!Q24 -> 0 | S124: =신고서!T24 -> 0 | U124: =신고서!W24 -> 0 | W124: 기타 | Z124: =신고서!AD24 -> 0 | AB124: =신고서!AF24 -> 0 | AD124: =신고서!AH24 -> 0 | AF124: =신고서!AJ24 -> 0 | AH124: =신고서!AL24 -> 0 | AJ124: =신고서!AN24 -> 0 | AL124: =신고서!AP24 -> 0 | AO124: =신고서!AR24 -> 0 | AQ124: =신고서!AT24 -> 0 | AS124: =신고서!AV24 -> 0
B125: =신고서!C25 -> 4 | E125: =신고서!F25 -> 이대한 | M125: =신고서!N25 -> ○ | S125: =신고서!T25 -> 0 | U125: =신고서!W25 -> 0 | W125: 국세청 | Z125: =신고서!AD25 -> 0 | AB125: =신고서!AF25 -> 0 | AD125: =신고서!AH25 -> 0 | AF125: =신고서!AJ25 -> 0 | AH125: =신고서!AL25 -> 0 | AJ125: =신고서!AN25 -> 0 | AL125: =신고서!AP25 -> 0 | AO125: =신고서!AR25 -> 0 | AQ125: =신고서!AT25 -> 0 | AS125: =신고서!AV25 -> 0
B126: =신고서!C26 -> 1 | E126: =신고서!F26 -> 091206-4059631 | M126: =신고서!N26 -> 0 | P126: =신고서!Q26 -> 0 | S126: =신고서!T26 -> 0 | U126: =신고서!W26 -> 0 | W126: 기타 | Z126: =신고서!AD26 -> 0 | AB126: =신고서!AF26 -> 0 | AD126: =신고서!AH26 -> 0 | AF126: =신고서!AJ26 -> 0 | AH126: =신고서!AL26 -> 0 | AJ126: =신고서!AN26 -> 0 | AL126: =신고서!AP26 -> 0 | AO126: =신고서!AR26 -> 0 | AQ126: =신고서!AT26 -> 0 | AS126: =신고서!AV26 -> 0
B127: =신고서!C27 -> 4 | E127: =신고서!F27 -> 이민국 | M127: =신고서!N27 -> ○ | S127: =신고서!T27 -> 0 | U127: =신고서!W27 -> 0 | W127: 국세청 | Z127: =신고서!AD27 -> 0 | AB127: =신고서!AF27 -> 0 | AD127: =신고서!AH27 -> 0 | AF127: =신고서!AJ27 -> 0 | AH127: =신고서!AL27 -> 0 | AJ127: =신고서!AN27 -> 0 | AL127: =신고서!AP27 -> 0 | AO127: =신고서!AR27 -> 0 | AQ127: =신고서!AT27 -> 0 | AS127: =신고서!AV27 -> 0
B128: =신고서!C28 -> 1 | E128: =신고서!F28 -> 151230-3059632 | M128: =신고서!N28 -> 0 | P128: =신고서!Q28 -> 0 | S128: =신고서!T28 -> 0 | U128: =신고서!W28 -> ○ | W128: 기타 | Z128: =신고서!AD28 -> 0 | AB128: =신고서!AF28 -> 0 | AD128: =신고서!AH28 -> 0 | AF128: =신고서!AJ28 -> 0 | AH128: =신고서!AL28 -> 0 | AJ128: =신고서!AN28 -> 0 | AL128: =신고서!AP28 -> 0 | AO128: =신고서!AR28 -> 0 | AQ128: =신고서!AT28 -> 0 | AS128: =신고서!AV28 -> 0
B129: =신고서!C29 -> 0 | G129: =신고서!H29 -> 0 | M129: =신고서!N29 -> 0 | S129: =신고서!T29 -> 0 | U129: =신고서!W29 -> 0 | W129: 국세청 | Z129: =신고서!AD29 -> 0 | AB129: =신고서!AF29 -> 0 | AD129: =신고서!AH29 -> 0 | AF129: =신고서!AJ29 -> 0 | AH129: =신고서!AL29 -> 0 | AJ129: =신고서!AN29 -> 0 | AL129: =신고서!AP29 -> 0 | AO129: =신고서!AR29 -> 0 | AQ129: =신고서!AT29 -> 0 | AS129: =신고서!AV29 -> 0
B130: =신고서!C30 -> 0 | G130: =신고서!H30 -> 0 | M130: =신고서!N30 -> 0 | P130: =신고서!Q30 -> 0 | S130: =신고서!T30 -> 0 | U130: =신고서!W30 -> 0 | W130: 기타 | Z130: =신고서!AD30 -> 0 | AB130: =신고서!AF30 -> 0 | AD130: =신고서!AH30 -> 0 | AF130: =신고서!AJ30 -> 0 | AH130: =신고서!AL30 -> 0 | AJ130: =신고서!AN30 -> 0 | AL130: =신고서!AP30 -> 0 | AO130: =신고서!AR30 -> 0 | AQ130: =신고서!AT30 -> 0 | AS130: =신고서!AV30 -> 0
B131: =신고서!C31 -> 0 | G131: =신고서!H31 -> 0 | M131: =신고서!N31 -> 0 | S131: =신고서!T31 -> 0 | U131: =신고서!W31 -> 0 | W131: 국세청 | Z131: =신고서!AD31 -> 0 | AB131: =신고서!AF31 -> 0 | AD131: =신고서!AH31 -> 0 | AF131: =신고서!AJ31 -> 0 | AH131: =신고서!AL31 -> 0 | AJ131: =신고서!AN31 -> 0 | AL131: =신고서!AP31 -> 0 | AO131: =신고서!AR31 -> 0 | AQ131: =신고서!AT31 -> 0 | AS131: =신고서!AV31 -> 0
B132: =신고서!C32 -> 0 | G132: =신고서!H32 -> 0 | M132: =신고서!N32 -> 0 | P132: =신고서!Q32 -> 0 | S132: =신고서!T32 -> 0 | U132: =신고서!W32 -> 0 | W132: 기타 | Z132: =신고서!AD32 -> 0 | AB132: =신고서!AF32 -> 0 | AD132: =신고서!AH32 -> 0 | AF132: =신고서!AJ32 -> 0 | AH132: =신고서!AL32 -> 0 | AJ132: =신고서!AN32 -> 0 | AL132: =신고서!AP32 -> 0 | AO132: =신고서!AR32 -> 0 | AQ132: =신고서!AT32 -> 0 | AS132: =신고서!AV32 -> 0
B133: =신고서!C33 -> 0 | G133: =신고서!H33 -> 0 | M133: =신고서!N33 -> 0 | S133: =신고서!T33 -> 0 | U133: =신고서!W33 -> 0 | W133: 국세청 | Z133: =신고서!AD33 -> 0 | AB133: =신고서!AF33 -> 0 | AD133: =신고서!AH33 -> 0 | AF133: =신고서!AJ33 -> 0 | AH133: =신고서!AL33 -> 0 | AJ133: =신고서!AN33 -> 0 | AL133: =신고서!AP33 -> 0 | AO133: =신고서!AR33 -> 0 | AQ133: =신고서!AT33 -> 0 | AS133: =신고서!AV33 -> 0
B134: =신고서!C34 -> 0 | G134: =신고서!H34 -> 0 | M134: =신고서!N34 -> 0 | P134: =신고서!Q34 -> 0 | S134: =신고서!T34 -> 0 | U134: =신고서!W34 -> 0 | W134: 기타 | Z134: =신고서!AD34 -> 0 | AB134: =신고서!AF34 -> 0 | AD134: =신고서!AH34 -> 0 | AF134: =신고서!AJ34 -> 0 | AH134: =신고서!AL34 -> 0 | AJ134: =신고서!AN34 -> 0 | AL134: =신고서!AP34 -> 0 | AO134: =신고서!AR34 -> 0 | AQ134: =신고서!AT34 -> 0 | AS134: =신고서!AV34 -> 0
B135: =신고서!C35 -> 0 | G135: =신고서!H35 -> 0 | M135: =신고서!N35 -> 0 | S135: =신고서!T35 -> 0 | U135: =신고서!W35 -> 0 | W135: 국세청 | Z135: =신고서!AD35 -> 0 | AB135: =신고서!AF35 -> 0 | AD135: =신고서!AH35 -> 0 | AF135: =신고서!AJ35 -> 0 | AH135: =신고서!AL35 -> 0 | AJ135: =신고서!AN35 -> 0 | AL135: =신고서!AP35 -> 0 | AO135: =신고서!AR35 -> 0 | AQ135: =신고서!AT35 -> 0 | AS135: =신고서!AV35 -> 0
B136: =신고서!C36 -> 0 | G136: =신고서!H36 -> 0 | M136: =신고서!N36 -> 0 | P136: =신고서!Q36 -> 0 | S136: =신고서!T36 -> 0 | U136: =신고서!W36 -> 0 | W136: 기타 | Z136: =신고서!AD36 -> 0 | AB136: =신고서!AF36 -> 0 | AD136: =신고서!AH36 -> 0 | AF136: =신고서!AJ36 -> 0 | AH136: =신고서!AL36 -> 0 | AJ136: =신고서!AN36 -> 0 | AL136: =신고서!AP36 -> 0 | AO136: =신고서!AR36 -> 0 | AQ136: =신고서!AT36 -> 0 | AS136: =신고서!AV36 -> 0
B137: =신고서!C37 -> 0 | G137: =신고서!H37 -> 0 | M137: =신고서!N37 -> 0 | S137: =신고서!T37 -> 0 | U137: =신고서!W37 -> 0 | W137: 국세청 | Z137: =신고서!AD37 -> 0 | AB137: =신고서!AF37 -> 0 | AD137: =신고서!AH37 -> 0 | AF137: =신고서!AJ37 -> 0 | AH137: =신고서!AL37 -> 0 | AJ137: =신고서!AN37 -> 0 | AL137: =신고서!AP37 -> 0 | AO137: =신고서!AR37 -> 0 | AQ137: =신고서!AT37 -> 0 | AS137: =신고서!AV37 -> 0
B138: =신고서!C38 -> 0 | G138: =신고서!H38 -> 0 | M138: =신고서!N38 -> 0 | P138: =신고서!Q38 -> 0 | S138: =신고서!T38 -> 0 | U138: =신고서!W38 -> 0 | W138: 기타 | Z138: =신고서!AD38 -> 0 | AB138: =신고서!AF38 -> 0 | AD138: =신고서!AH38 -> 0 | AF138: =신고서!AJ38 -> 0 | AH138: =신고서!AL38 -> 0 | AJ138: =신고서!AN38 -> 0 | AL138: =신고서!AP38 -> 0 | AO138: =신고서!AR38 -> 0 | AQ138: =신고서!AT38 -> 0 | AS138: =신고서!AV38 -> 0
B139: 각종 소득공제ㆍ세액공제 항목
B140: 자료 구분 | E140: 기간 | G140: 신용카드등 사용액공제 | AQ140: 기부금
G141: 신용카드 | M141: 직불카드등 | S141: 현금영수증 | Y141: 도서공연등사용분 (총급여 7천만원 이하자만 기재) | AE141: 전통시장사용분 | AK141: 대중교통 이용분
B143: 국세청계 | E143: 3월 | G143: =+신고서!H43 -> 0 | M143: =+신고서!N43 -> 0 | S143: =+신고서!T43 -> 0 | Y143: =+신고서!Z43 -> 0 | AE143: =+신고서!AF43 -> 0 | AK143: =+신고서!AL43 -> 0 | AQ143: =신고서!AT43 -> 0
E144: 4~7월 | G144: =+신고서!H44 -> 0 | M144: =+신고서!N44 -> 0 | S144: =+신고서!T44 -> 0 | Y144: =+신고서!Z44 -> 0 | AE144: =+신고서!AF44 -> 0 | AK144: =+신고서!AL44 -> 0
E145: 그 외 | G145: =+신고서!H45 -> 0 | M145: =+신고서!N45 -> 0 | S145: =+신고서!T45 -> 0 | Y145: =+신고서!Z45 -> 0 | AE145: =+신고서!AF45 -> 0 | AK145: =+신고서!AL45 -> 0
B146: 기타계 | E146: 3월 | G146: =+신고서!H46 -> 0 | M146: =+신고서!N46 -> 0 | Y146: =+신고서!Z46 -> 0 | AE146: =+신고서!AF46 -> 0 | AK146: =+신고서!AL46 -> 0 | AQ146: =+신고서!AT46 -> 0
E147: 4~7월 | G147: =+신고서!H47 -> 0 | M147: =+신고서!N47 -> 0 | Y147: =+신고서!Z47 -> 0 | AE147: =+신고서!AF47 -> 0 | AK147: =+신고서!AL47 -> 0
E148: 그 외 | G148: =+신고서!H48 -> 0 | M148: =+신고서!N48 -> 0 | S148: =신고서!T46 -> 0 | Y148: =+신고서!Z48 -> 0 | AE148: =+신고서!AF48 -> 0 | AK148: =+신고서!AL48 -> 0 | AQ148: =신고서!AT46 -> 0
B149: 국세청 | E149: 3월 | G149: =+신고서!H49 -> 0 | M149: =+신고서!N49 -> 0 | S149: =+신고서!T49 -> 0 | Y149: =+신고서!Z49 -> 0 | AE149: =+신고서!AF49 -> 0 | AK149: =+신고서!AL49 -> 0 | AQ149: =신고서!AT49 -> 0
E150: 4~7월 | G150: =+신고서!H50 -> 0 | M150: =+신고서!N50 -> 0 | S150: =+신고서!T50 -> 0 | Y150: =+신고서!Z50 -> 0 | AE150: =+신고서!AF50 -> 0 | AK150: =+신고서!AL50 -> 0
E151: 그 외 | G151: =+신고서!H51 -> 0 | M151: =+신고서!N51 -> 0 | S151: =+신고서!T51 -> 0 | Y151: =+신고서!Z51 -> 0 | AE151: =+신고서!AF51 -> 0 | AK151: =+신고서!AL51 -> 0
B152: 기타 | E152: 3월 | G152: =+신고서!H52 -> 0 | M152: =+신고서!N52 -> 0 | Y152: =+신고서!Z52 -> 0 | AE152: =+신고서!AF52 -> 0 | AK152: =+신고서!AL52 -> 0 | AQ152: =+신고서!AT52 -> 0
E153: 4~7월 | G153: =+신고서!H53 -> 0 | M153: =+신고서!N53 -> 0 | Y153: =+신고서!Z53 -> 0 | AE153: =+신고서!AF53 -> 0 | AK153: =+신고서!AL53 -> 0
E154: 그 외 | G154: =+신고서!H54 -> 0 | M154: =+신고서!N54 -> 0 | S154: =신고서!T52 -> 0 | Y154: =+신고서!Z54 -> 0 | AE154: =+신고서!AF54 -> 0 | AK154: =+신고서!AL54 -> 0 | AQ154: =신고서!AT52 -> 0
B155: 국세청 | E155: 3월 | G155: =+신고서!H55 -> 0 | M155: =+신고서!N55 -> 0 | S155: =+신고서!T55 -> 0 | Y155: =+신고서!Z55 -> 0 | AE155: =+신고서!AF55 -> 0 | AK155: =+신고서!AL55 -> 0 | AQ155: =신고서!AT55 -> 0
E156: 4~7월 | G156: =+신고서!H56 -> 0 | M156: =+신고서!N56 -> 0 | S156: =+신고서!T56 -> 0 | Y156: =+신고서!Z56 -> 0 | AE156: =+신고서!AF56 -> 0 | AK156: =+신고서!AL56 -> 0
E157: 그 외 | G157: =+신고서!H57 -> 0 | M157: =+신고서!N57 -> 0 | S157: =+신고서!T57 -> 0 | Y157: =+신고서!Z57 -> 0 | AE157: =+신고서!AF57 -> 0 | AK157: =+신고서!AL57 -> 0
B158: 기타 | E158: 3월 | G158: =+신고서!H58 -> 0 | M158: =+신고서!N58 -> 0 | Y158: =+신고서!Z58 -> 0 | AE158: =+신고서!AF58 -> 0 | AK158: =+신고서!AL58 -> 0 | AQ158: =+신고서!AT58 -> 0
E159: 4~7월 | G159: =+신고서!H59 -> 0 | M159: =+신고서!N59 -> 0 | Y159: =+신고서!Z59 -> 0 | AE159: =+신고서!AF59 -> 0 | AK159: =+신고서!AL59 -> 0
E160: 그 외 | G160: =+신고서!H60 -> 0 | M160: =+신고서!N60 -> 0 | S160: =신고서!T58 -> 0 | Y160: =+신고서!Z60 -> 0 | AE160: =+신고서!AF60 -> 0 | AK160: =+신고서!AL60 -> 0 | AQ160: =신고서!AT58 -> 0
AT161: 210㎜×297㎜

Sheet 징수부
B2: ■ 소득세법 시행규칙 [별지 제25호서식(1)] <개정 2014.3.14> | Q2: (3쪽 중 제1쪽)
F3: 소 득 자 별 근 로 소 득 원 천 징 수 부
C4: ①귀속연도 | E4: =기본사항!G10 -> 2021
B6: 징수의무자 | E6: ②법 인 명(상호) | H6: =기본사항!G14 -> (주)조세통람
E7: ③사업자등록번호 | H7: =기본사항!G16 -> 203-81-11111
B8: ④ 근무처
B9: 소 득 자 | E9: ⑤성 명 | H9: =기본사항!G7 -> 이영화 | J9: ⑥주민등록번호 | L9: =기본사항!G8 -> 123456-1234567 | O9: ⑦입사일 퇴사일
E11: ⑧ 내외국인 구분 | H11: 내국인1/외국인9 | J11: ⑨ 국적 | O11: (국적코드 : )
E12: ⑩ 공제대상가족의 수(본인․배우자를 각각 1인으로 봄) | L12: =인적공제!G17 -> 5
E13: ⑪ 20세 이하 자녀의 수 | L13: =인적공제!O7 -> 0
E14: ⑫ 감면 적용 여부 | H14: 여 1, 부 2 | J14: ⑬ 감면규정 | N14: ⑭ 감면기간 | P14: ~
B15: Ⅰ. 근 로 소 득 지 급 명 세
B16: 월별 | C16: (15)지급연월 | E16: 1. 총 급 여 | M16: 2. 징수세액
E17: (16)급여 | F17: (17)상여 | G17: (18)인정상여 | H17: (19)주식매수선택권행사이익 | I17: (20)우리사주조합인출금 | J17: (21)임원퇴직소득금액 한도초과액 | K17: (22)~(29) | L17: (30)계 | M17: 간이세액표 적용 대상 | O17: 그 외 | P17: (34)소득세계 (32)+(33) | Q17: (35)지방 소득세
M18: (31)급여구간 | N18: (32)소득세 | O18: (33)소득세
B19: 1 | C19: =급여내역!E8 -> 0 | E19: =급여내역!H8 -> 2100000 | F19: =급여내역!M8 -> 0 | G19: =급여내역!Q8 -> 0 | H19: =급여내역!U8 -> 0 | I19: =급여내역!V8 -> 0 | J19: =급여내역!X8 -> 0 | L19: =SUM(E19:K19) -> 2100000 | N19: =급여내역!AC8 -> 22740 | P19: =N19+O19 -> 22740 | Q19: =P19*0.1 -> 2274
B20: 2 | C20: =급여내역!E9 -> 0 | E20: =급여내역!H9 -> 2100000 | F20: =급여내역!M9 -> 0 | G20: =급여내역!Q9 -> 0 | H20: =급여내역!U9 -> 0 | I20: =급여내역!V9 -> 0 | J20: =급여내역!X9 -> 0 | L20: =SUM(E20:K20) -> 2100000 | N20: =급여내역!AC9 -> 22740 | P20: =N20+O20 -> 22740 | Q20: =P20*0.1 -> 2274
B21: 3 | C21: =급여내역!E10 -> 0 | E21: =급여내역!H10 -> 2100000 | F21: =급여내역!M10 -> 0 | G21: =급여내역!Q10 -> 0 | H21: =급여내역!U10 -> 0 | I21: =급여내역!V10 -> 0 | J21: =급여내역!X10 -> 0 | L21: 2100000 | N21: =급여내역!AC10 -> 22740 | P21: 22740 | Q21: 2274
B22: 4 | C22: =급여내역!E11 -> 0 | E22: =급여내역!H11 -> 2100000 | F22: =급여내역!M11 -> 0 | G22: =급여내역!Q11 -> 0 | H22: =급여내역!U11 -> 0 | I22: =급여내역!V11 -> 0 | J22: =급여내역!X11 -> 0 | L22: 2100000 | N22: =급여내역!AC11 -> 22740 | P22: 22740 | Q22: 2274
B23: 5 | C23: =급여내역!E12 -> 0 | E23: =급여내역!H12 -> 2100000 | F23: =급여내역!M12 -> 0 | G23: =급여내역!Q12 -> 0 | H23: =급여내역!U12 -> 0 | I23: =급여내역!V12 -> 0 | J23: =급여내역!X12 -> 0 | L23: 2100000 | N23: =급여내역!AC12 -> 22740 | P23: 22740 | Q23: 2274
B24: 6 | C24: =급여내역!E13 -> 0 | E24: =급여내역!H13 -> 2100000 | F24: =급여내역!M13 -> 0 | G24: =급여내역!Q13 -> 0 | H24: =급여내역!U13 -> 0 | I24: =급여내역!V13 -> 0 | J24: =급여내역!X13 -> 0 | L24: 2100000 | N24: =급여내역!AC13 -> 22740 | P24: 22740 | Q24: 2274
B25: 7 | C25: =급여내역!E14 -> 0 | E25: =급여내역!H14 -> 2100000 | F25: =급여내역!M14 -> 0 | G25: =급여내역!Q14 -> 0 | H25: =급여내역!U14 -> 0 | I25: =급여내역!V14 -> 0 | J25: =급여내역!X14 -> 0 | L25: 2100000 | N25: =급여내역!AC14 -> 22740 | P25: 22740 | Q25: 2274
B26: 8 | C26: =급여내역!E15 -> 0 | E26: =급여내역!H15 -> 2100000 | F26: =급여내역!M15 -> 0 | G26: =급여내역!Q15 -> 0 | H26: =급여내역!U15 -> 0 | I26: =급여내역!V15 -> 0 | J26: =급여내역!X15 -> 0 | L26: 2100000 | N26: =급여내역!AC15 -> 22740 | P26: 22740 | Q26: 2274
B27: 9 | C27: =급여내역!E16 -> 0 | E27: =급여내역!H16 -> 2100000 | F27: =급여내역!M16 -> 0 | G27: =급여내역!Q16 -> 0 | H27: =급여내역!U16 -> 0 | I27: =급여내역!V16 -> 0 | J27: =급여내역!X16 -> 0 | L27: 2100000 | N27: =급여내역!AC16 -> 22740 | P27: 22740 | Q27: 2274
B28: 10 | C28: =급여내역!E17 -> 0 | E28: =급여내역!H17 -> 2100000 | F28: =급여내역!M17 -> 0 | G28: =급여내역!Q17 -> 0 | H28: =급여내역!U17 -> 0 | I28: =급여내역!V17 -> 0 | J28: =급여내역!X17 -> 0 | L28: 2100000 | N28: =급여내역!AC17 -> 22740 | P28: 22740 | Q28: 2274
B29: 11 | C29: =급여내역!E18 -> 0 | E29: =급여내역!H18 -> 2100000 | F29: =급여내역!M18 -> 0 | G29: =급여내역!Q18 -> 0 | H29: =급여내역!U18 -> 0 | I29: =급여내역!V18 -> 0 | J29: =급여내역!X18 -> 0 | L29: 2100000 | N29: =급여내역!AC18 -> 22740 | P29: 22740 | Q29: 2274
B30: 12 | C30: =급여내역!E19 -> 0 | E30: =급여내역!H19 -> 2100000 | F30: =급여내역!M19 -> 0 | G30: =급여내역!Q19 -> 0 | H30: =급여내역!U19 -> 0 | I30: =급여내역!V19 -> 0 | J30: =급여내역!X19 -> 0 | L30: 2100000 | N30: =급여내역!AC19 -> 22740 | P30: 22740 | Q30: 2274
B31: 계 | E31: =SUM(E19:E30) -> 25200000 | F31: 0 | G31: 0 | H31: 0 | I31: 0 | J31: 0 | K31: 0 | L31: 25200000 | N31: =SUM(N19:N30) -> 272880 | O31: =SUM(O19:O30) -> 0 | P31: =SUM(P19:P30) -> 272880 | Q31: =SUM(Q19:Q30) -> 27288
Q32: 297㎜×210㎜
Q34: (3쪽 중 제2쪽)
B35: Ⅱ. 비 과 세 소 득
B36: ※소득세법 시행규칙 제24호 서식(1) 근로소득원천징수영수증(5쪽) 비과세 및 감면소득 코드 참조
B37: 월별 | C37: 1. 지급명세서 작성 대상 비과세 소득 | N37: 2. 지급명세서 작성 제외대상 비과세 소득 ※해당 원천징수의무자가 지급한 소득을 적음
C38: (15)지급연월 | E38: 국외근로소득 (코드 : ) | H38: (39)야간근로 수당 등 (O01) | I38: (40)출산˙ 보육수당 (Q01) | J38: (41)～(49) (코드 : ) | K38: (50)합계 (38+～+49) | N38: (51)일직료 등 (H02) | O38: (52)자가운전보조금 (H03) | P38: (53)～(59) | Q38: (60)합계 (51+～+59)
E39: (36)외화 | F39: (37)환율 | G39: (38)원화
B40: 1 | C40: =급여내역!AX8 -> 0 | G40: =급여내역!BB8 -> 0 | H40: =급여내역!BK8 -> 0 | I40: =급여내역!BO8 -> 0 | J40: =급여내역!BP8 -> 0 | K40: =SUM(G40:J40) -> 0 | Q40: =SUM(N40:P40) -> 0
B41: 2 | C41: =급여내역!AX9 -> 0 | G41: =급여내역!BB9 -> 0 | H41: =급여내역!BK9 -> 0 | I41: =급여내역!BO9 -> 0 | J41: =급여내역!BP9 -> 0 | K41: =SUM(G41:J41) -> 0 | Q41: =SUM(N41:P41) -> 0
B42: 3 | C42: =급여내역!AX10 -> 0 | G42: =급여내역!BB10 -> 0 | H42: =급여내역!BK10 -> 0 | I42: =급여내역!BO10 -> 0 | J42: =급여내역!BP10 -> 0 | K42: 0 | Q42: 0
B43: 4 | C43: =급여내역!AX11 -> 0 | G43: =급여내역!BB11 -> 0 | H43: =급여내역!BK11 -> 0 | I43: =급여내역!BO11 -> 0 | J43: =급여내역!BP11 -> 0 | K43: 0 | Q43: 0
B44: 5 | C44: =급여내역!AX12 -> 0 | G44: =급여내역!BB12 -> 0 | H44: =급여내역!BK12 -> 0 | I44: =급여내역!BO12 -> 0 | J44: =급여내역!BP12 -> 0 | K44: 0 | Q44: 0
B45: 6 | C45: =급여내역!AX13 -> 0 | G45: =급여내역!BB13 -> 0 | H45: =급여내역!BK13 -> 0 | I45: =급여내역!BO13 -> 0 | J45: =급여내역!BP13 -> 0 | K45: 0 | Q45: 0
B46: 7 | C46: =급여내역!AX14 -> 0 | G46: =급여내역!BB14 -> 0 | H46: =급여내역!BK14 -> 0 | I46: =급여내역!BO14 -> 0 | J46: =급여내역!BP14 -> 0 | K46: 0 | Q46: 0
B47: 8 | C47: =급여내역!AX15 -> 0 | G47: =급여내역!BB15 -> 0 | H47: =급여내역!BK15 -> 0 | I47: =급여내역!BO15 -> 0 | J47: =급여내역!BP15 -> 0 | K47: 0 | Q47: 0
B48: 9 | C48: =급여내역!AX16 -> 0 | G48: =급여내역!BB16 -> 0 | H48: =급여내역!BK16 -> 0 | I48: =급여내역!BO16 -> 0 | J48: =급여내역!BP16 -> 0 | K48: 0 | Q48: 0
B49: 10 | C49: =급여내역!AX17 -> 0 | G49: =급여내역!BB17 -> 0 | H49: =급여내역!BK17 -> 0 | I49: =급여내역!BO17 -> 0 | J49: =급여내역!BP17 -> 0 | K49: 0 | Q49: 0
B50: 11 | C50: =급여내역!AX18 -> 0 | G50: =급여내역!BB18 -> 0 | H50: =급여내역!BK18 -> 0 | I50: =급여내역!BO18 -> 0 | J50: =급여내역!BP18 -> 0 | K50: 0 | Q50: 0
B51: 12 | C51: =급여내역!AX19 -> 0 | G51: =급여내역!BB19 -> 0 | H51: =급여내역!BK19 -> 0 | I51: =급여내역!BO19 -> 0 | J51: =급여내역!BP19 -> 0 | K51: 0 | Q51: 0
B52: 계 | F52: =SUM(F40:F51) -> 0 | G52: =SUM(G40:G51) -> 0 | H52: =SUM(H40:H51) -> 0 | I52: 0 | J52: 0 | K52: 0 | N52: 0 | O52: 0 | P52: =SUM(P40:P51) -> 0 | Q52: =SUM(Q40:Q51) -> 0
Q53: 297㎜×210㎜
Q54: (3쪽 중 제3쪽)
B55: Ⅲ. 근 로 소 득 원 천 징 수 액 등
B56: 월별 | C56: 1.감면세액 | F56: (63)납세조합 공제세액 | G56: 2. 차 감 원 천 징 수 액 | K56: 3. 징수의무자 자체 증빙 지출액(소득공제)
C57: (61)감면소득 | E57: (62)감면세액 | G57: (64)소득세 | H57: (65)지방소득세 | I57: (66)농어촌특별세 | J57: (67)외국납부세액 | K57: (68)연금보험 | L57: (69)건강보험 | M57: (70)고용보험 | N57: (71)기부금 | P57: (72)비고
B58: 1 | E58: =급여내역!AI8 -> 0 | G58: =급여내역!AL8 -> 22740 | H58: =급여내역!AP8 -> 2270 | I58: =급여내역!AT8 -> 0 | K58: =급여내역!CA8 -> 94500 | L58: =급여내역!CB8+급여내역!CD8 -> 73600 | M58: =급여내역!CC8 -> 16800
B59: 2 | E59: =급여내역!AI9 -> 0 | G59: =급여내역!AL9 -> 22740 | H59: =급여내역!AP9 -> 2270 | I59: =급여내역!AT9 -> 0 | K59: =급여내역!CA9 -> 94500 | L59: =급여내역!CB9+급여내역!CD9 -> 73600 | M59: =급여내역!CC9 -> 16800
B60: 3 | E60: =급여내역!AI10 -> 0 | G60: =급여내역!AL10 -> 22740 | H60: =급여내역!AP10 -> 2270 | I60: =급여내역!AT10 -> 0 | K60: =급여내역!CA10 -> 94500 | L60: =급여내역!CB10+급여내역!CD10 -> 73600 | M60: =급여내역!CC10 -> 16800
B61: 4 | E61: =급여내역!AI11 -> 0 | G61: =급여내역!AL11 -> 22740 | H61: =급여내역!AP11 -> 2270 | I61: =급여내역!AT11 -> 0 | K61: =급여내역!CA11 -> 94500 | L61: =급여내역!CB11+급여내역!CD11 -> 73600 | M61: =급여내역!CC11 -> 16800
B62: 5 | E62: =급여내역!AI12 -> 0 | G62: =급여내역!AL12 -> 22740 | H62: =급여내역!AP12 -> 2270 | I62: =급여내역!AT12 -> 0 | K62: =급여내역!CA12 -> 94500 | L62: =급여내역!CB12+급여내역!CD12 -> 73600 | M62: =급여내역!CC12 -> 16800
B63: 6 | E63: =급여내역!AI13 -> 0 | G63: =급여내역!AL13 -> 22740 | H63: =급여내역!AP13 -> 2270 | I63: =급여내역!AT13 -> 0 | K63: =급여내역!CA13 -> 94500 | L63: =급여내역!CB13+급여내역!CD13 -> 73600 | M63: =급여내역!CC13 -> 16800
B64: 7 | E64: =급여내역!AI14 -> 0 | G64: =급여내역!AL14 -> 22740 | H64: =급여내역!AP14 -> 2270 | I64: =급여내역!AT14 -> 0 | K64: =급여내역!CA14 -> 94500 | L64: =급여내역!CB14+급여내역!CD14 -> 73600 | M64: =급여내역!CC14 -> 16800
B65: 8 | E65: =급여내역!AI15 -> 0 | G65: =급여내역!AL15 -> 22740 | H65: =급여내역!AP15 -> 2270 | I65: =급여내역!AT15 -> 0 | K65: =급여내역!CA15 -> 94500 | L65: =급여내역!CB15+급여내역!CD15 -> 73600 | M65: =급여내역!CC15 -> 16800
B66: 9 | E66: =급여내역!AI16 -> 0 | G66: =급여내역!AL16 -> 22740 | H66: =급여내역!AP16 -> 0 | I66: =급여내역!AT16 -> 0 | K66: =급여내역!CA16 -> 94500 | L66: =급여내역!CB16+급여내역!CD16 -> 73600 | M66: =급여내역!CC16 -> 16800
B67: 10 | E67: =급여내역!AI17 -> 0 | G67: =급여내역!AL17 -> 22740 | H67: =급여내역!AP17 -> 2270 | I67: =급여내역!AT17 -> 0 | K67: =급여내역!CA17 -> 94500 | L67: =급여내역!CB17+급여내역!CD17 -> 73600 | M67: =급여내역!CC17 -> 16800
B68: 11 | E68: =급여내역!AI18 -> 0 | G68: =급여내역!AL18 -> 22740 | H68: =급여내역!AP18 -> 2270 | I68: =급여내역!AT18 -> 0 | K68: =급여내역!CA18 -> 94500 | L68: =급여내역!CB18+급여내역!CD18 -> 73600 | M68: =급여내역!CC18 -> 16800
B69: 12 | E69: =급여내역!AI19 -> 0 | G69: =급여내역!AL19 -> 22740 | H69: =급여내역!AP19 -> 2270 | I69: =급여내역!AT19 -> 0 | K69: =급여내역!CA19 -> 94500 | L69: =급여내역!CB19+급여내역!CD19 -> 73600 | M69: =급여내역!CC19 -> 16800
B70: 계 | C70: =SUM(C58:D69) -> 0 | E70: =SUM(E58:E69) -> 0 | F70: 0 | G70: 272880 | H70: 24970 | I70: 0 | J70: 0 | K70: 1134000 | L70: 883200 | M70: 201600
B71: 작성일자: | G71: =기본사항!G19 -> 2022-03-02 | I71: 징수의무자: | K71: =기본사항!G15 -> 김철수 | N71: (서명 또는 인)
B72: ※ (72)비고란에는 (71)기부금에 해당하는 기부금유형 및 코드를 적습니다.
Q73: 297㎜×210㎜

Sheet 사용가이드
